Workbook

Sheet Notice Data (Enter Data Here)
A1: Parameter | B1: Value
A2: Last Name | B2: Boland
A3: First Name | B3: Kevin
A4: Facility Name | B4: LANL
A5: Address Line 1 | B5: 30 Bikini Atoll Rd
A6: Address Line 2 | B6: TA-48 RC-1
A7: City | B7: Los Alamos
A8: State | B8: NM
A9: Zip Code | B9: 87545
A10: Country | B10: U.S.
A11: Telephone | B11: 2177411285
A12: Proposal Number | B12: 3480, 3326,
A13: Date of Notice | B13: 2011-05-13
A14: Beam Line | B14: BL 11-2 | C14: *Enter data with a leading apostrophe (e.g., '3-1)
A15: Run Date | C15: *Required for 1 Day Notice
A16: End Run Date | C16: *Required for 1 Day Notice
A17: RMA Number | C17: *Required for 1 Day Notice
A18: Number of Packages | C18: *Required for 1 Day Notice
A19: Number of Holders | C19: *Required for 1 Day Notice
A21: Mouse over column headers for context sensitive help.
A23: Sample Number | B23: Nuclide | C23: Mass (g) | D23: Activity (Bq) | E23: Physical State | F23: Chemical State | G23: Notice Type | H23: Cont Cat No | I23: Shipping Package Number | J23: Activity (Ci) | AD23: Nuclides | AE23: Physical | AF23: Chemical | AG23: Holder
A24: LANLU1 | B24: U-234 | C24: 0.01 | D24: =IF(Table5[[#This Row],[Mass (g)]]="","",Table5[[#This Row],[Mass (g)]]*VLOOKUP(Table5[[#This Row],[Nuclide]],Doedata,4)*37000000000) -> 2312500 | E24: Solid | F24: Compound | G24: 30 | H24: 1b | I24: LANLU1 | J24: =IF(Table5[[#This Row],[Activity (Bq)]]="","",Table5[[#This Row],[Activity (Bq)]]/37000000000) -> 6.25e-05 | AD24: Ac-224 | AE24: Solid | AF24: Elemental | AG24: 1a
B25: U-235 | C25: 0.03 | D25: =IF(Table5[[#This Row],[Mass (g)]]="","",Table5[[#This Row],[Mass (g)]]*VLOOKUP(Table5[[#This Row],[Nuclide]],Doedata,4)*37000000000) -> 2397.6 | E25: Solid | F25: Compound | G25: 30 | H25: 1b | I25: LANLU1 | J25: =IF(Table5[[#This Row],[Activity (Bq)]]="","",Table5[[#This Row],[Activity (Bq)]]/37000000000) -> 6.48e-08 | AD25: Ac-225 | AE25: Liquid | AF25: Compound | AG25: 1b
B26: U-236 | C26: 0.2 | D26: =IF(Table5[[#This Row],[Mass (g)]]="","",Table5[[#This Row],[Mass (g)]]*VLOOKUP(Table5[[#This Row],[Nuclide]],Doedata,4)*37000000000) -> 478780 | E26: Solid | F26: Compound | G26: 30 | H26: 1b | I26: LANLU1 | J26: =IF(Table5[[#This Row],[Activity (Bq)]]="","",Table5[[#This Row],[Activity (Bq)]]/37000000000) -> 1.294e-05 | AD26: Ac-226 | AE26: Gas | AF26: Alloy | AG26: 1c
D27: =IF(Table5[[#This Row],[Mass (g)]]="","",Table5[[#This Row],[Mass (g)]]*VLOOKUP(Table5[[#This Row],[Nuclide]],Doedata,4)*37000000000) ->  | J27: =IF(Table5[[#This Row],[Activity (Bq)]]="","",Table5[[#This Row],[Activity (Bq)]]/37000000000) ->  | AD27: Ac-227 | AE27: Powder | AF27: Oxide | AG27: 1d
D28: =IF(Table5[[#This Row],[Mass (g)]]="","",Table5[[#This Row],[Mass (g)]]*VLOOKUP(Table5[[#This Row],[Nuclide]],Doedata,4)*37000000000) ->  | J28: =IF(Table5[[#This Row],[Activity (Bq)]]="","",Table5[[#This Row],[Activity (Bq)]]/37000000000) ->  | AD28: Ac-228 | AE28: Glass | AF28: Other | AG28: 1h
D29: =IF(Table5[[#This Row],[Mass (g)]]="","",Table5[[#This Row],[Mass (g)]]*VLOOKUP(Table5[[#This Row],[Nuclide]],Doedata,4)*37000000000) ->  | J29: =IF(Table5[[#This Row],[Activity (Bq)]]="","",Table5[[#This Row],[Activity (Bq)]]/37000000000) ->  | AD29: Ag-102 | AE29: Metal | AG29: 2a
D30: =IF(Table5[[#This Row],[Mass (g)]]="","",Table5[[#This Row],[Mass (g)]]*VLOOKUP(Table5[[#This Row],[Nuclide]],Doedata,4)*37000000000) ->  | J30: =IF(Table5[[#This Row],[Activity (Bq)]]="","",Table5[[#This Row],[Activity (Bq)]]/37000000000) ->  | AD30: Ag-103 | AE30: Slurry/Paste | AG30: 2b
D31: =IF(Table5[[#This Row],[Mass (g)]]="","",Table5[[#This Row],[Mass (g)]]*VLOOKUP(Table5[[#This Row],[Nuclide]],Doedata,4)*37000000000) ->  | J31: =IF(Table5[[#This Row],[Activity (Bq)]]="","",Table5[[#This Row],[Activity (Bq)]]/37000000000) ->  | AD31: Ag-104 | AE31: Other | AG31: 2c
D32: =IF(Table5[[#This Row],[Mass (g)]]="","",Table5[[#This Row],[Mass (g)]]*VLOOKUP(Table5[[#This Row],[Nuclide]],Doedata,4)*37000000000) ->  | J32: =IF(Table5[[#This Row],[Activity (Bq)]]="","",Table5[[#This Row],[Activity (Bq)]]/37000000000) ->  | AD32: Ag-104m | AG32: 2d
D33: =IF(Table5[[#This Row],[Mass (g)]]="","",Table5[[#This Row],[Mass (g)]]*VLOOKUP(Table5[[#This Row],[Nuclide]],Doedata,4)*37000000000) ->  | J33: =IF(Table5[[#This Row],[Activity (Bq)]]="","",Table5[[#This Row],[Activity (Bq)]]/37000000000) ->  | AD33: Ag-105 | AG33: 3a
D34: =IF(Table5[[#This Row],[Mass (g)]]="","",Table5[[#This Row],[Mass (g)]]*VLOOKUP(Table5[[#This Row],[Nuclide]],Doedata,4)*37000000000) ->  | J34: =IF(Table5[[#This Row],[Activity (Bq)]]="","",Table5[[#This Row],[Activity (Bq)]]/37000000000) ->  | AD34: Ag-106 | AG34: 3b
D35: =IF(Table5[[#This Row],[Mass (g)]]="","",Table5[[#This Row],[Mass (g)]]*VLOOKUP(Table5[[#This Row],[Nuclide]],Doedata,4)*37000000000) ->  | J35: =IF(Table5[[#This Row],[Activity (Bq)]]="","",Table5[[#This Row],[Activity (Bq)]]/37000000000) ->  | AD35: Ag-106m | AG35: 3c
D36: =IF(Table5[[#This Row],[Mass (g)]]="","",Table5[[#This Row],[Mass (g)]]*VLOOKUP(Table5[[#This Row],[Nuclide]],Doedata,4)*37000000000) ->  | J36: =IF(Table5[[#This Row],[Activity (Bq)]]="","",Table5[[#This Row],[Activity (Bq)]]/37000000000) ->  | AD36: Ag-108m | AG36: 3d
D37: =IF(Table5[[#This Row],[Mass (g)]]="","",Table5[[#This Row],[Mass (g)]]*VLOOKUP(Table5[[#This Row],[Nuclide]],Doedata,4)*37000000000) ->  | J37: =IF(Table5[[#This Row],[Activity (Bq)]]="","",Table5[[#This Row],[Activity (Bq)]]/37000000000) ->  | AD37: Ag-110m | AG37: 4a
D38: =IF(Table5[[#This Row],[Mass (g)]]="","",Table5[[#This Row],[Mass (g)]]*VLOOKUP(Table5[[#This Row],[Nuclide]],Doedata,4)*37000000000) ->  | J38: =IF(Table5[[#This Row],[Activity (Bq)]]="","",Table5[[#This Row],[Activity (Bq)]]/37000000000) ->  | AD38: Ag-111 | AG38: 4b
D39: =IF(Table5[[#This Row],[Mass (g)]]="","",Table5[[#This Row],[Mass (g)]]*VLOOKUP(Table5[[#This Row],[Nuclide]],Doedata,4)*37000000000) ->  | J39: =IF(Table5[[#This Row],[Activity (Bq)]]="","",Table5[[#This Row],[Activity (Bq)]]/37000000000) ->  | AD39: Ag-112 | AG39: 4c
D40: =IF(Table5[[#This Row],[Mass (g)]]="","",Table5[[#This Row],[Mass (g)]]*VLOOKUP(Table5[[#This Row],[Nuclide]],Doedata,4)*37000000000) ->  | J40: =IF(Table5[[#This Row],[Activity (Bq)]]="","",Table5[[#This Row],[Activity (Bq)]]/37000000000) ->  | AD40: Ag-115 | AG40: 4d
D41: =IF(Table5[[#This Row],[Mass (g)]]="","",Table5[[#This Row],[Mass (g)]]*VLOOKUP(Table5[[#This Row],[Nuclide]],Doedata,4)*37000000000) ->  | J41: =IF(Table5[[#This Row],[Activity (Bq)]]="","",Table5[[#This Row],[Activity (Bq)]]/37000000000) ->  | AD41: Al-26 | AG41: 4h
D42: =IF(Table5[[#This Row],[Mass (g)]]="","",Table5[[#This Row],[Mass (g)]]*VLOOKUP(Table5[[#This Row],[Nuclide]],Doedata,4)*37000000000) ->  | J42: =IF(Table5[[#This Row],[Activity (Bq)]]="","",Table5[[#This Row],[Activity (Bq)]]/37000000000) ->  | AD42: Am-237 | AG42: 4q
D43: =IF(Table5[[#This Row],[Mass (g)]]="","",Table5[[#This Row],[Mass (g)]]*VLOOKUP(Table5[[#This Row],[Nuclide]],Doedata,4)*37000000000) ->  | J43: =IF(Table5[[#This Row],[Activity (Bq)]]="","",Table5[[#This Row],[Activity (Bq)]]/37000000000) ->  | AD43: Am-238
D44: =IF(Table5[[#This Row],[Mass (g)]]="","",Table5[[#This Row],[Mass (g)]]*VLOOKUP(Table5[[#This Row],[Nuclide]],Doedata,4)*37000000000) ->  | J44: =IF(Table5[[#This Row],[Activity (Bq)]]="","",Table5[[#This Row],[Activity (Bq)]]/37000000000) ->  | AD44: Am-239
D45: =IF(Table5[[#This Row],[Mass (g)]]="","",Table5[[#This Row],[Mass (g)]]*VLOOKUP(Table5[[#This Row],[Nuclide]],Doedata,4)*37000000000) ->  | J45: =IF(Table5[[#This Row],[Activity (Bq)]]="","",Table5[[#This Row],[Activity (Bq)]]/37000000000) ->  | AD45: Am-240
D46: =IF(Table5[[#This Row],[Mass (g)]]="","",Table5[[#This Row],[Mass (g)]]*VLOOKUP(Table5[[#This Row],[Nuclide]],Doedata,4)*37000000000) ->  | J46: =IF(Table5[[#This Row],[Activity (Bq)]]="","",Table5[[#This Row],[Activity (Bq)]]/37000000000) ->  | AD46: Am-241
D47: =IF(Table5[[#This Row],[Mass (g)]]="","",Table5[[#This Row],[Mass (g)]]*VLOOKUP(Table5[[#This Row],[Nuclide]],Doedata,4)*37000000000) ->  | J47: =IF(Table5[[#This Row],[Activity (Bq)]]="","",Table5[[#This Row],[Activity (Bq)]]/37000000000) ->  | AD47: Am-242
D48: =IF(Table5[[#This Row],[Mass (g)]]="","",Table5[[#This Row],[Mass (g)]]*VLOOKUP(Table5[[#This Row],[Nuclide]],Doedata,4)*37000000000) ->  | J48: =IF(Table5[[#This Row],[Activity (Bq)]]="","",Table5[[#This Row],[Activity (Bq)]]/37000000000) ->  | AD48: Am-242m
D49: =IF(Table5[[#This Row],[Mass (g)]]="","",Table5[[#This Row],[Mass (g)]]*VLOOKUP(Table5[[#This Row],[Nuclide]],Doedata,4)*37000000000) ->  | J49: =IF(Table5[[#This Row],[Activity (Bq)]]="","",Table5[[#This Row],[Activity (Bq)]]/37000000000) ->  | AD49: Am-243
D50: =IF(Table5[[#This Row],[Mass (g)]]="","",Table5[[#This Row],[Mass (g)]]*VLOOKUP(Table5[[#This Row],[Nuclide]],Doedata,4)*37000000000) ->  | J50: =IF(Table5[[#This Row],[Activity (Bq)]]="","",Table5[[#This Row],[Activity (Bq)]]/37000000000) ->  | AD50: Am-244
D51: =IF(Table5[[#This Row],[Mass (g)]]="","",Table5[[#This Row],[Mass (g)]]*VLOOKUP(Table5[[#This Row],[Nuclide]],Doedata,4)*37000000000) ->  | J51: =IF(Table5[[#This Row],[Activity (Bq)]]="","",Table5[[#This Row],[Activity (Bq)]]/37000000000) ->  | AD51: Am-244m
D52: =IF(Table5[[#This Row],[Mass (g)]]="","",Table5[[#This Row],[Mass (g)]]*VLOOKUP(Table5[[#This Row],[Nuclide]],Doedata,4)*37000000000) ->  | J52: =IF(Table5[[#This Row],[Activity (Bq)]]="","",Table5[[#This Row],[Activity (Bq)]]/37000000000) ->  | AD52: Am-245
D53: =IF(Table5[[#This Row],[Mass (g)]]="","",Table5[[#This Row],[Mass (g)]]*VLOOKUP(Table5[[#This Row],[Nuclide]],Doedata,4)*37000000000) ->  | J53: =IF(Table5[[#This Row],[Activity (Bq)]]="","",Table5[[#This Row],[Activity (Bq)]]/37000000000) ->  | AD53: Am-246
D54: =IF(Table5[[#This Row],[Mass (g)]]="","",Table5[[#This Row],[Mass (g)]]*VLOOKUP(Table5[[#This Row],[Nuclide]],Doedata,4)*37000000000) ->  | J54: =IF(Table5[[#This Row],[Activity (Bq)]]="","",Table5[[#This Row],[Activity (Bq)]]/37000000000) ->  | AD54: Am-246m
D55: =IF(Table5[[#This Row],[Mass (g)]]="","",Table5[[#This Row],[Mass (g)]]*VLOOKUP(Table5[[#This Row],[Nuclide]],Doedata,4)*37000000000) ->  | J55: =IF(Table5[[#This Row],[Activity (Bq)]]="","",Table5[[#This Row],[Activity (Bq)]]/37000000000) ->  | AD55: Ar-39
D56: =IF(Table5[[#This Row],[Mass (g)]]="","",Table5[[#This Row],[Mass (g)]]*VLOOKUP(Table5[[#This Row],[Nuclide]],Doedata,4)*37000000000) ->  | J56: =IF(Table5[[#This Row],[Activity (Bq)]]="","",Table5[[#This Row],[Activity (Bq)]]/37000000000) ->  | AD56: Ar-41
D57: =IF(Table5[[#This Row],[Mass (g)]]="","",Table5[[#This Row],[Mass (g)]]*VLOOKUP(Table5[[#This Row],[Nuclide]],Doedata,4)*37000000000) ->  | J57: =IF(Table5[[#This Row],[Activity (Bq)]]="","",Table5[[#This Row],[Activity (Bq)]]/37000000000) ->  | AD57: As-69
D58: =IF(Table5[[#This Row],[Mass (g)]]="","",Table5[[#This Row],[Mass (g)]]*VLOOKUP(Table5[[#This Row],[Nuclide]],Doedata,4)*37000000000) ->  | J58: =IF(Table5[[#This Row],[Activity (Bq)]]="","",Table5[[#This Row],[Activity (Bq)]]/37000000000) ->  | AD58: As-70
D59: =IF(Table5[[#This Row],[Mass (g)]]="","",Table5[[#This Row],[Mass (g)]]*VLOOKUP(Table5[[#This Row],[Nuclide]],Doedata,4)*37000000000) ->  | J59: =IF(Table5[[#This Row],[Activity (Bq)]]="","",Table5[[#This Row],[Activity (Bq)]]/37000000000) ->  | AD59: As-71
D60: =IF(Table5[[#This Row],[Mass (g)]]="","",Table5[[#This Row],[Mass (g)]]*VLOOKUP(Table5[[#This Row],[Nuclide]],Doedata,4)*37000000000) ->  | J60: =IF(Table5[[#This Row],[Activity (Bq)]]="","",Table5[[#This Row],[Activity (Bq)]]/37000000000) ->  | AD60: As-72
D61: =IF(Table5[[#This Row],[Mass (g)]]="","",Table5[[#This Row],[Mass (g)]]*VLOOKUP(Table5[[#This Row],[Nuclide]],Doedata,4)*37000000000) ->  | J61: =IF(Table5[[#This Row],[Activity (Bq)]]="","",Table5[[#This Row],[Activity (Bq)]]/37000000000) ->  | AD61: As-73
D62: =IF(Table5[[#This Row],[Mass (g)]]="","",Table5[[#This Row],[Mass (g)]]*VLOOKUP(Table5[[#This Row],[Nuclide]],Doedata,4)*37000000000) ->  | J62: =IF(Table5[[#This Row],[Activity (Bq)]]="","",Table5[[#This Row],[Activity (Bq)]]/37000000000) ->  | AD62: As-74
D63: =IF(Table5[[#This Row],[Mass (g)]]="","",Table5[[#This Row],[Mass (g)]]*VLOOKUP(Table5[[#This Row],[Nuclide]],Doedata,4)*37000000000) ->  | J63: =IF(Table5[[#This Row],[Activity (Bq)]]="","",Table5[[#This Row],[Activity (Bq)]]/37000000000) ->  | AD63: As-76
D64: =IF(Table5[[#This Row],[Mass (g)]]="","",Table5[[#This Row],[Mass (g)]]*VLOOKUP(Table5[[#This Row],[Nuclide]],Doedata,4)*37000000000) ->  | J64: =IF(Table5[[#This Row],[Activity (Bq)]]="","",Table5[[#This Row],[Activity (Bq)]]/37000000000) ->  | AD64: As-77
D65: =IF(Table5[[#This Row],[Mass (g)]]="","",Table5[[#This Row],[Mass (g)]]*VLOOKUP(Table5[[#This Row],[Nuclide]],Doedata,4)*37000000000) ->  | J65: =IF(Table5[[#This Row],[Activity (Bq)]]="","",Table5[[#This Row],[Activity (Bq)]]/37000000000) ->  | AD65: As-78
D66: =IF(Table5[[#This Row],[Mass (g)]]="","",Table5[[#This Row],[Mass (g)]]*VLOOKUP(Table5[[#This Row],[Nuclide]],Doedata,4)*37000000000) ->  | J66: =IF(Table5[[#This Row],[Activity (Bq)]]="","",Table5[[#This Row],[Activity (Bq)]]/37000000000) ->  | AD66: At-207
D67: =IF(Table5[[#This Row],[Mass (g)]]="","",Table5[[#This Row],[Mass (g)]]*VLOOKUP(Table5[[#This Row],[Nuclide]],Doedata,4)*37000000000) ->  | J67: =IF(Table5[[#This Row],[Activity (Bq)]]="","",Table5[[#This Row],[Activity (Bq)]]/37000000000) ->  | AD67: At-211
D68: =IF(Table5[[#This Row],[Mass (g)]]="","",Table5[[#This Row],[Mass (g)]]*VLOOKUP(Table5[[#This Row],[Nuclide]],Doedata,4)*37000000000) ->  | J68: =IF(Table5[[#This Row],[Activity (Bq)]]="","",Table5[[#This Row],[Activity (Bq)]]/37000000000) ->  | AD68: Au-193
D69: =IF(Table5[[#This Row],[Mass (g)]]="","",Table5[[#This Row],[Mass (g)]]*VLOOKUP(Table5[[#This Row],[Nuclide]],Doedata,4)*37000000000) ->  | J69: =IF(Table5[[#This Row],[Activity (Bq)]]="","",Table5[[#This Row],[Activity (Bq)]]/37000000000) ->  | AD69: Au-194
D70: =IF(Table5[[#This Row],[Mass (g)]]="","",Table5[[#This Row],[Mass (g)]]*VLOOKUP(Table5[[#This Row],[Nuclide]],Doedata,4)*37000000000) ->  | J70: =IF(Table5[[#This Row],[Activity (Bq)]]="","",Table5[[#This Row],[Activity (Bq)]]/37000000000) ->  | AD70: Au-195
D71: =IF(Table5[[#This Row],[Mass (g)]]="","",Table5[[#This Row],[Mass (g)]]*VLOOKUP(Table5[[#This Row],[Nuclide]],Doedata,4)*37000000000) ->  | J71: =IF(Table5[[#This Row],[Activity (Bq)]]="","",Table5[[#This Row],[Activity (Bq)]]/37000000000) ->  | AD71: Au-198
D72: =IF(Table5[[#This Row],[Mass (g)]]="","",Table5[[#This Row],[Mass (g)]]*VLOOKUP(Table5[[#This Row],[Nuclide]],Doedata,4)*37000000000) ->  | J72: =IF(Table5[[#This Row],[Activity (Bq)]]="","",Table5[[#This Row],[Activity (Bq)]]/37000000000) ->  | AD72: Au-198m
D73: =IF(Table5[[#This Row],[Mass (g)]]="","",Table5[[#This Row],[Mass (g)]]*VLOOKUP(Table5[[#This Row],[Nuclide]],Doedata,4)*37000000000) ->  | J73: =IF(Table5[[#This Row],[Activity (Bq)]]="","",Table5[[#This Row],[Activity (Bq)]]/37000000000) ->  | AD73: Au-199
D74: =IF(Table5[[#This Row],[Mass (g)]]="","",Table5[[#This Row],[Mass (g)]]*VLOOKUP(Table5[[#This Row],[Nuclide]],Doedata,4)*37000000000) ->  | J74: =IF(Table5[[#This Row],[Activity (Bq)]]="","",Table5[[#This Row],[Activity (Bq)]]/37000000000) ->  | AD74: Au-200
D75: =IF(Table5[[#This Row],[Mass (g)]]="","",Table5[[#This Row],[Mass (g)]]*VLOOKUP(Table5[[#This Row],[Nuclide]],Doedata,4)*37000000000) ->  | J75: =IF(Table5[[#This Row],[Activity (Bq)]]="","",Table5[[#This Row],[Activity (Bq)]]/37000000000) ->  | AD75: Au-200m
D76: =IF(Table5[[#This Row],[Mass (g)]]="","",Table5[[#This Row],[Mass (g)]]*VLOOKUP(Table5[[#This Row],[Nuclide]],Doedata,4)*37000000000) ->  | J76: =IF(Table5[[#This Row],[Activity (Bq)]]="","",Table5[[#This Row],[Activity (Bq)]]/37000000000) ->  | AD76: Au-201
D77: =IF(Table5[[#This Row],[Mass (g)]]="","",Table5[[#This Row],[Mass (g)]]*VLOOKUP(Table5[[#This Row],[Nuclide]],Doedata,4)*37000000000) ->  | J77: =IF(Table5[[#This Row],[Activity (Bq)]]="","",Table5[[#This Row],[Activity (Bq)]]/37000000000) ->  | AD77: Ba-126
D78: =IF(Table5[[#This Row],[Mass (g)]]="","",Table5[[#This Row],[Mass (g)]]*VLOOKUP(Table5[[#This Row],[Nuclide]],Doedata,4)*37000000000) ->  | J78: =IF(Table5[[#This Row],[Activity (Bq)]]="","",Table5[[#This Row],[Activity (Bq)]]/37000000000) ->  | AD78: Ba-128
D79: =IF(Table5[[#This Row],[Mass (g)]]="","",Table5[[#This Row],[Mass (g)]]*VLOOKUP(Table5[[#This Row],[Nuclide]],Doedata,4)*37000000000) ->  | J79: =IF(Table5[[#This Row],[Activity (Bq)]]="","",Table5[[#This Row],[Activity (Bq)]]/37000000000) ->  | AD79: Ba-131
D80: =IF(Table5[[#This Row],[Mass (g)]]="","",Table5[[#This Row],[Mass (g)]]*VLOOKUP(Table5[[#This Row],[Nuclide]],Doedata,4)*37000000000) ->  | J80: =IF(Table5[[#This Row],[Activity (Bq)]]="","",Table5[[#This Row],[Activity (Bq)]]/37000000000) ->  | AD80: Ba-131m
D81: =IF(Table5[[#This Row],[Mass (g)]]="","",Table5[[#This Row],[Mass (g)]]*VLOOKUP(Table5[[#This Row],[Nuclide]],Doedata,4)*37000000000) ->  | J81: =IF(Table5[[#This Row],[Activity (Bq)]]="","",Table5[[#This Row],[Activity (Bq)]]/37000000000) ->  | AD81: Ba-133
D82: =IF(Table5[[#This Row],[Mass (g)]]="","",Table5[[#This Row],[Mass (g)]]*VLOOKUP(Table5[[#This Row],[Nuclide]],Doedata,4)*37000000000) ->  | J82: =IF(Table5[[#This Row],[Activity (Bq)]]="","",Table5[[#This Row],[Activity (Bq)]]/37000000000) ->  | AD82: Ba-133m
D83: =IF(Table5[[#This Row],[Mass (g)]]="","",Table5[[#This Row],[Mass (g)]]*VLOOKUP(Table5[[#This Row],[Nuclide]],Doedata,4)*37000000000) ->  | J83: =IF(Table5[[#This Row],[Activity (Bq)]]="","",Table5[[#This Row],[Activity (Bq)]]/37000000000) ->  | AD83: Ba-135m
D84: =IF(Table5[[#This Row],[Mass (g)]]="","",Table5[[#This Row],[Mass (g)]]*VLOOKUP(Table5[[#This Row],[Nuclide]],Doedata,4)*37000000000) ->  | J84: =IF(Table5[[#This Row],[Activity (Bq)]]="","",Table5[[#This Row],[Activity (Bq)]]/37000000000) ->  | AD84: Ba-139
D85: =IF(Table5[[#This Row],[Mass (g)]]="","",Table5[[#This Row],[Mass (g)]]*VLOOKUP(Table5[[#This Row],[Nuclide]],Doedata,4)*37000000000) ->  | J85: =IF(Table5[[#This Row],[Activity (Bq)]]="","",Table5[[#This Row],[Activity (Bq)]]/37000000000) ->  | AD85: Ba-140
D86: =IF(Table5[[#This Row],[Mass (g)]]="","",Table5[[#This Row],[Mass (g)]]*VLOOKUP(Table5[[#This Row],[Nuclide]],Doedata,4)*37000000000) ->  | J86: =IF(Table5[[#This Row],[Activity (Bq)]]="","",Table5[[#This Row],[Activity (Bq)]]/37000000000) ->  | AD86: Ba-141
D87: =IF(Table5[[#This Row],[Mass (g)]]="","",Table5[[#This Row],[Mass (g)]]*VLOOKUP(Table5[[#This Row],[Nuclide]],Doedata,4)*37000000000) ->  | J87: =IF(Table5[[#This Row],[Activity (Bq)]]="","",Table5[[#This Row],[Activity (Bq)]]/37000000000) ->  | AD87: Ba-142
D88: =IF(Table5[[#This Row],[Mass (g)]]="","",Table5[[#This Row],[Mass (g)]]*VLOOKUP(Table5[[#This Row],[Nuclide]],Doedata,4)*37000000000) ->  | J88: =IF(Table5[[#This Row],[Activity (Bq)]]="","",Table5[[#This Row],[Activity (Bq)]]/37000000000) ->  | AD88: Be-10
D89: =IF(Table5[[#This Row],[Mass (g)]]="","",Table5[[#This Row],[Mass (g)]]*VLOOKUP(Table5[[#This Row],[Nuclide]],Doedata,4)*37000000000) ->  | J89: =IF(Table5[[#This Row],[Activity (Bq)]]="","",Table5[[#This Row],[Activity (Bq)]]/37000000000) ->  | AD89: Be-7
D90: =IF(Table5[[#This Row],[Mass (g)]]="","",Table5[[#This Row],[Mass (g)]]*VLOOKUP(Table5[[#This Row],[Nuclide]],Doedata,4)*37000000000) ->  | J90: =IF(Table5[[#This Row],[Activity (Bq)]]="","",Table5[[#This Row],[Activity (Bq)]]/37000000000) ->  | AD90: Bi-200
D91: =IF(Table5[[#This Row],[Mass (g)]]="","",Table5[[#This Row],[Mass (g)]]*VLOOKUP(Table5[[#This Row],[Nuclide]],Doedata,4)*37000000000) ->  | J91: =IF(Table5[[#This Row],[Activity (Bq)]]="","",Table5[[#This Row],[Activity (Bq)]]/37000000000) ->  | AD91: Bi-201
D92: =IF(Table5[[#This Row],[Mass (g)]]="","",Table5[[#This Row],[Mass (g)]]*VLOOKUP(Table5[[#This Row],[Nuclide]],Doedata,4)*37000000000) ->  | J92: =IF(Table5[[#This Row],[Activity (Bq)]]="","",Table5[[#This Row],[Activity (Bq)]]/37000000000) ->  | AD92: Bi-202
D93: =IF(Table5[[#This Row],[Mass (g)]]="","",Table5[[#This Row],[Mass (g)]]*VLOOKUP(Table5[[#This Row],[Nuclide]],Doedata,4)*37000000000) ->  | J93: =IF(Table5[[#This Row],[Activity (Bq)]]="","",Table5[[#This Row],[Activity (Bq)]]/37000000000) ->  | AD93: Bi-203
D94: =IF(Table5[[#This Row],[Mass (g)]]="","",Table5[[#This Row],[Mass (g)]]*VLOOKUP(Table5[[#This Row],[Nuclide]],Doedata,4)*37000000000) ->  | J94: =IF(Table5[[#This Row],[Activity (Bq)]]="","",Table5[[#This Row],[Activity (Bq)]]/37000000000) ->  | AD94: Bi-205
D95: =IF(Table5[[#This Row],[Mass (g)]]="","",Table5[[#This Row],[Mass (g)]]*VLOOKUP(Table5[[#This Row],[Nuclide]],Doedata,4)*37000000000) ->  | J95: =IF(Table5[[#This Row],[Activity (Bq)]]="","",Table5[[#This Row],[Activity (Bq)]]/37000000000) ->  | AD95: Bi-206
D96: =IF(Table5[[#This Row],[Mass (g)]]="","",Table5[[#This Row],[Mass (g)]]*VLOOKUP(Table5[[#This Row],[Nuclide]],Doedata,4)*37000000000) ->  | J96: =IF(Table5[[#This Row],[Activity (Bq)]]="","",Table5[[#This Row],[Activity (Bq)]]/37000000000) ->  | AD96: Bi-207
D97: =IF(Table5[[#This Row],[Mass (g)]]="","",Table5[[#This Row],[Mass (g)]]*VLOOKUP(Table5[[#This Row],[Nuclide]],Doedata,4)*37000000000) ->  | J97: =IF(Table5[[#This Row],[Activity (Bq)]]="","",Table5[[#This Row],[Activity (Bq)]]/37000000000) ->  | AD97: Bi-210
D98: =IF(Table5[[#This Row],[Mass (g)]]="","",Table5[[#This Row],[Mass (g)]]*VLOOKUP(Table5[[#This Row],[Nuclide]],Doedata,4)*37000000000) ->  | J98: =IF(Table5[[#This Row],[Activity (Bq)]]="","",Table5[[#This Row],[Activity (Bq)]]/37000000000) ->  | AD98: Bi-210m
D99: =IF(Table5[[#This Row],[Mass (g)]]="","",Table5[[#This Row],[Mass (g)]]*VLOOKUP(Table5[[#This Row],[Nuclide]],Doedata,4)*37000000000) ->  | J99: =IF(Table5[[#This Row],[Activity (Bq)]]="","",Table5[[#This Row],[Activity (Bq)]]/37000000000) ->  | AD99: Bi-212
D100: =IF(Table5[[#This Row],[Mass (g)]]="","",Table5[[#This Row],[Mass (g)]]*VLOOKUP(Table5[[#This Row],[Nuclide]],Doedata,4)*37000000000) ->  | J100: =IF(Table5[[#This Row],[Activity (Bq)]]="","",Table5[[#This Row],[Activity (Bq)]]/37000000000) ->  | AD100: Bi-213
D101: =IF(Table5[[#This Row],[Mass (g)]]="","",Table5[[#This Row],[Mass (g)]]*VLOOKUP(Table5[[#This Row],[Nuclide]],Doedata,4)*37000000000) ->  | J101: =IF(Table5[[#This Row],[Activity (Bq)]]="","",Table5[[#This Row],[Activity (Bq)]]/37000000000) ->  | AD101: Bi-214
D102: =IF(Table5[[#This Row],[Mass (g)]]="","",Table5[[#This Row],[Mass (g)]]*VLOOKUP(Table5[[#This Row],[Nuclide]],Doedata,4)*37000000000) ->  | J102: =IF(Table5[[#This Row],[Activity (Bq)]]="","",Table5[[#This Row],[Activity (Bq)]]/37000000000) ->  | AD102: Bk-245
D103: =IF(Table5[[#This Row],[Mass (g)]]="","",Table5[[#This Row],[Mass (g)]]*VLOOKUP(Table5[[#This Row],[Nuclide]],Doedata,4)*37000000000) ->  | J103: =IF(Table5[[#This Row],[Activity (Bq)]]="","",Table5[[#This Row],[Activity (Bq)]]/37000000000) ->  | AD103: Bk-246
D104: =IF(Table5[[#This Row],[Mass (g)]]="","",Table5[[#This Row],[Mass (g)]]*VLOOKUP(Table5[[#This Row],[Nuclide]],Doedata,4)*37000000000) ->  | J104: =IF(Table5[[#This Row],[Activity (Bq)]]="","",Table5[[#This Row],[Activity (Bq)]]/37000000000) ->  | AD104: Bk-247
D105: =IF(Table5[[#This Row],[Mass (g)]]="","",Table5[[#This Row],[Mass (g)]]*VLOOKUP(Table5[[#This Row],[Nuclide]],Doedata,4)*37000000000) ->  | J105: =IF(Table5[[#This Row],[Activity (Bq)]]="","",Table5[[#This Row],[Activity (Bq)]]/37000000000) ->  | AD105: Bk-249
D106: =IF(Table5[[#This Row],[Mass (g)]]="","",Table5[[#This Row],[Mass (g)]]*VLOOKUP(Table5[[#This Row],[Nuclide]],Doedata,4)*37000000000) ->  | J106: =IF(Table5[[#This Row],[Activity (Bq)]]="","",Table5[[#This Row],[Activity (Bq)]]/37000000000) ->  | AD106: Bk-250
D107: =IF(Table5[[#This Row],[Mass (g)]]="","",Table5[[#This Row],[Mass (g)]]*VLOOKUP(Table5[[#This Row],[Nuclide]],Doedata,4)*37000000000) ->  | J107: =IF(Table5[[#This Row],[Activity (Bq)]]="","",Table5[[#This Row],[Activity (Bq)]]/37000000000) ->  | AD107: Br-74
D108: =IF(Table5[[#This Row],[Mass (g)]]="","",Table5[[#This Row],[Mass (g)]]*VLOOKUP(Table5[[#This Row],[Nuclide]],Doedata,4)*37000000000) ->  | J108: =IF(Table5[[#This Row],[Activity (Bq)]]="","",Table5[[#This Row],[Activity (Bq)]]/37000000000) ->  | AD108: Br-74m
D109: =IF(Table5[[#This Row],[Mass (g)]]="","",Table5[[#This Row],[Mass (g)]]*VLOOKUP(Table5[[#This Row],[Nuclide]],Doedata,4)*37000000000) ->  | J109: =IF(Table5[[#This Row],[Activity (Bq)]]="","",Table5[[#This Row],[Activity (Bq)]]/37000000000) ->  | AD109: Br-75
D110: =IF(Table5[[#This Row],[Mass (g)]]="","",Table5[[#This Row],[Mass (g)]]*VLOOKUP(Table5[[#This Row],[Nuclide]],Doedata,4)*37000000000) ->  | J110: =IF(Table5[[#This Row],[Activity (Bq)]]="","",Table5[[#This Row],[Activity (Bq)]]/37000000000) ->  | AD110: Br-76
D111: =IF(Table5[[#This Row],[Mass (g)]]="","",Table5[[#This Row],[Mass (g)]]*VLOOKUP(Table5[[#This Row],[Nuclide]],Doedata,4)*37000000000) ->  | J111: =IF(Table5[[#This Row],[Activity (Bq)]]="","",Table5[[#This Row],[Activity (Bq)]]/37000000000) ->  | AD111: Br-77
D112: =IF(Table5[[#This Row],[Mass (g)]]="","",Table5[[#This Row],[Mass (g)]]*VLOOKUP(Table5[[#This Row],[Nuclide]],Doedata,4)*37000000000) ->  | J112: =IF(Table5[[#This Row],[Activity (Bq)]]="","",Table5[[#This Row],[Activity (Bq)]]/37000000000) ->  | AD112: Br-80
D113: =IF(Table5[[#This Row],[Mass (g)]]="","",Table5[[#This Row],[Mass (g)]]*VLOOKUP(Table5[[#This Row],[Nuclide]],Doedata,4)*37000000000) ->  | J113: =IF(Table5[[#This Row],[Activity (Bq)]]="","",Table5[[#This Row],[Activity (Bq)]]/37000000000) ->  | AD113: Br-80m
D114: =IF(Table5[[#This Row],[Mass (g)]]="","",Table5[[#This Row],[Mass (g)]]*VLOOKUP(Table5[[#This Row],[Nuclide]],Doedata,4)*37000000000) ->  | J114: =IF(Table5[[#This Row],[Activity (Bq)]]="","",Table5[[#This Row],[Activity (Bq)]]/37000000000) ->  | AD114: Br-82
D115: =IF(Table5[[#This Row],[Mass (g)]]="","",Table5[[#This Row],[Mass (g)]]*VLOOKUP(Table5[[#This Row],[Nuclide]],Doedata,4)*37000000000) ->  | J115: =IF(Table5[[#This Row],[Activity (Bq)]]="","",Table5[[#This Row],[Activity (Bq)]]/37000000000) ->  | AD115: Br-83
D116: =IF(Table5[[#This Row],[Mass (g)]]="","",Table5[[#This Row],[Mass (g)]]*VLOOKUP(Table5[[#This Row],[Nuclide]],Doedata,4)*37000000000) ->  | J116: =IF(Table5[[#This Row],[Activity (Bq)]]="","",Table5[[#This Row],[Activity (Bq)]]/37000000000) ->  | AD116: Br-84
D117: =IF(Table5[[#This Row],[Mass (g)]]="","",Table5[[#This Row],[Mass (g)]]*VLOOKUP(Table5[[#This Row],[Nuclide]],Doedata,4)*37000000000) ->  | J117: =IF(Table5[[#This Row],[Activity (Bq)]]="","",Table5[[#This Row],[Activity (Bq)]]/37000000000) ->  | AD117: C-11
D118: =IF(Table5[[#This Row],[Mass (g)]]="","",Table5[[#This Row],[Mass (g)]]*VLOOKUP(Table5[[#This Row],[Nuclide]],Doedata,4)*37000000000) ->  | J118: =IF(Table5[[#This Row],[Activity (Bq)]]="","",Table5[[#This Row],[Activity (Bq)]]/37000000000) ->  | AD118: C1-36
D119: =IF(Table5[[#This Row],[Mass (g)]]="","",Table5[[#This Row],[Mass (g)]]*VLOOKUP(Table5[[#This Row],[Nuclide]],Doedata,4)*37000000000) ->  | J119: =IF(Table5[[#This Row],[Activity (Bq)]]="","",Table5[[#This Row],[Activity (Bq)]]/37000000000) ->  | AD119: C1-38
D120: =IF(Table5[[#This Row],[Mass (g)]]="","",Table5[[#This Row],[Mass (g)]]*VLOOKUP(Table5[[#This Row],[Nuclide]],Doedata,4)*37000000000) ->  | J120: =IF(Table5[[#This Row],[Activity (Bq)]]="","",Table5[[#This Row],[Activity (Bq)]]/37000000000) ->  | AD120: C1-39
D121: =IF(Table5[[#This Row],[Mass (g)]]="","",Table5[[#This Row],[Mass (g)]]*VLOOKUP(Table5[[#This Row],[Nuclide]],Doedata,4)*37000000000) ->  | J121: =IF(Table5[[#This Row],[Activity (Bq)]]="","",Table5[[#This Row],[Activity (Bq)]]/37000000000) ->  | AD121: C-14
D122: =IF(Table5[[#This Row],[Mass (g)]]="","",Table5[[#This Row],[Mass (g)]]*VLOOKUP(Table5[[#This Row],[Nuclide]],Doedata,4)*37000000000) ->  | J122: =IF(Table5[[#This Row],[Activity (Bq)]]="","",Table5[[#This Row],[Activity (Bq)]]/37000000000) ->  | AD122: Ca-41
D123: =IF(Table5[[#This Row],[Mass (g)]]="","",Table5[[#This Row],[Mass (g)]]*VLOOKUP(Table5[[#This Row],[Nuclide]],Doedata,4)*37000000000) ->  | J123: =IF(Table5[[#This Row],[Activity (Bq)]]="","",Table5[[#This Row],[Activity (Bq)]]/37000000000) ->  | AD123: Ca-45
D124: =IF(Table5[[#This Row],[Mass (g)]]="","",Table5[[#This Row],[Mass (g)]]*VLOOKUP(Table5[[#This Row],[Nuclide]],Doedata,4)*37000000000) ->  | J124: =IF(Table5[[#This Row],[Activity (Bq)]]="","",Table5[[#This Row],[Activity (Bq)]]/37000000000) ->  | AD124: Ca-47
D125: =IF(Table5[[#This Row],[Mass (g)]]="","",Table5[[#This Row],[Mass (g)]]*VLOOKUP(Table5[[#This Row],[Nuclide]],Doedata,4)*37000000000) ->  | J125: =IF(Table5[[#This Row],[Activity (Bq)]]="","",Table5[[#This Row],[Activity (Bq)]]/37000000000) ->  | AD125: Cd-104
D126: =IF(Table5[[#This Row],[Mass (g)]]="","",Table5[[#This Row],[Mass (g)]]*VLOOKUP(Table5[[#This Row],[Nuclide]],Doedata,4)*37000000000) ->  | J126: =IF(Table5[[#This Row],[Activity (Bq)]]="","",Table5[[#This Row],[Activity (Bq)]]/37000000000) ->  | AD126: Cd-107
D127: =IF(Table5[[#This Row],[Mass (g)]]="","",Table5[[#This Row],[Mass (g)]]*VLOOKUP(Table5[[#This Row],[Nuclide]],Doedata,4)*37000000000) ->  | J127: =IF(Table5[[#This Row],[Activity (Bq)]]="","",Table5[[#This Row],[Activity (Bq)]]/37000000000) ->  | AD127: Cd-109
D128: =IF(Table5[[#This Row],[Mass (g)]]="","",Table5[[#This Row],[Mass (g)]]*VLOOKUP(Table5[[#This Row],[Nuclide]],Doedata,4)*37000000000) ->  | J128: =IF(Table5[[#This Row],[Activity (Bq)]]="","",Table5[[#This Row],[Activity (Bq)]]/37000000000) ->  | AD128: Cd-113
D129: =IF(Table5[[#This Row],[Mass (g)]]="","",Table5[[#This Row],[Mass (g)]]*VLOOKUP(Table5[[#This Row],[Nuclide]],Doedata,4)*37000000000) ->  | J129: =IF(Table5[[#This Row],[Activity (Bq)]]="","",Table5[[#This Row],[Activity (Bq)]]/37000000000) ->  | AD129: Cd-113m
D130: =IF(Table5[[#This Row],[Mass (g)]]="","",Table5[[#This Row],[Mass (g)]]*VLOOKUP(Table5[[#This Row],[Nuclide]],Doedata,4)*37000000000) ->  | J130: =IF(Table5[[#This Row],[Activity (Bq)]]="","",Table5[[#This Row],[Activity (Bq)]]/37000000000) ->  | AD130: Cd-115
D131: =IF(Table5[[#This Row],[Mass (g)]]="","",Table5[[#This Row],[Mass (g)]]*VLOOKUP(Table5[[#This Row],[Nuclide]],Doedata,4)*37000000000) ->  | J131: =IF(Table5[[#This Row],[Activity (Bq)]]="","",Table5[[#This Row],[Activity (Bq)]]/37000000000) ->  | AD131: Cd-115m
D132: =IF(Table5[[#This Row],[Mass (g)]]="","",Table5[[#This Row],[Mass (g)]]*VLOOKUP(Table5[[#This Row],[Nuclide]],Doedata,4)*37000000000) ->  | J132: =IF(Table5[[#This Row],[Activity (Bq)]]="","",Table5[[#This Row],[Activity (Bq)]]/37000000000) ->  | AD132: Cd-117
D133: =IF(Table5[[#This Row],[Mass (g)]]="","",Table5[[#This Row],[Mass (g)]]*VLOOKUP(Table5[[#This Row],[Nuclide]],Doedata,4)*37000000000) ->  | J133: =IF(Table5[[#This Row],[Activity (Bq)]]="","",Table5[[#This Row],[Activity (Bq)]]/37000000000) ->  | AD133: Cd-117m
D134: =IF(Table5[[#This Row],[Mass (g)]]="","",Table5[[#This Row],[Mass (g)]]*VLOOKUP(Table5[[#This Row],[Nuclide]],Doedata,4)*37000000000) ->  | J134: =IF(Table5[[#This Row],[Activity (Bq)]]="","",Table5[[#This Row],[Activity (Bq)]]/37000000000) ->  | AD134: Ce-134
D135: =IF(Table5[[#This Row],[Mass (g)]]="","",Table5[[#This Row],[Mass (g)]]*VLOOKUP(Table5[[#This Row],[Nuclide]],Doedata,4)*37000000000) ->  | J135: =IF(Table5[[#This Row],[Activity (Bq)]]="","",Table5[[#This Row],[Activity (Bq)]]/37000000000) ->  | AD135: Ce-135
D136: =IF(Table5[[#This Row],[Mass (g)]]="","",Table5[[#This Row],[Mass (g)]]*VLOOKUP(Table5[[#This Row],[Nuclide]],Doedata,4)*37000000000) ->  | J136: =IF(Table5[[#This Row],[Activity (Bq)]]="","",Table5[[#This Row],[Activity (Bq)]]/37000000000) ->  | AD136: Ce-137
D137: =IF(Table5[[#This Row],[Mass (g)]]="","",Table5[[#This Row],[Mass (g)]]*VLOOKUP(Table5[[#This Row],[Nuclide]],Doedata,4)*37000000000) ->  | J137: =IF(Table5[[#This Row],[Activity (Bq)]]="","",Table5[[#This Row],[Activity (Bq)]]/37000000000) ->  | AD137: Ce-137m
D138: =IF(Table5[[#This Row],[Mass (g)]]="","",Table5[[#This Row],[Mass (g)]]*VLOOKUP(Table5[[#This Row],[Nuclide]],Doedata,4)*37000000000) ->  | J138: =IF(Table5[[#This Row],[Activity (Bq)]]="","",Table5[[#This Row],[Activity (Bq)]]/37000000000) ->  | AD138: Ce-139
D139: =IF(Table5[[#This Row],[Mass (g)]]="","",Table5[[#This Row],[Mass (g)]]*VLOOKUP(Table5[[#This Row],[Nuclide]],Doedata,4)*37000000000) ->  | J139: =IF(Table5[[#This Row],[Activity (Bq)]]="","",Table5[[#This Row],[Activity (Bq)]]/37000000000) ->  | AD139: Ce-141
D140: =IF(Table5[[#This Row],[Mass (g)]]="","",Table5[[#This Row],[Mass (g)]]*VLOOKUP(Table5[[#This Row],[Nuclide]],Doedata,4)*37000000000) ->  | J140: =IF(Table5[[#This Row],[Activity (Bq)]]="","",Table5[[#This Row],[Activity (Bq)]]/37000000000) ->  | AD140: Ce-143
D141: =IF(Table5[[#This Row],[Mass (g)]]="","",Table5[[#This Row],[Mass (g)]]*VLOOKUP(Table5[[#This Row],[Nuclide]],Doedata,4)*37000000000) ->  | J141: =IF(Table5[[#This Row],[Activity (Bq)]]="","",Table5[[#This Row],[Activity (Bq)]]/37000000000) ->  | AD141: Ce-144
D142: =IF(Table5[[#This Row],[Mass (g)]]="","",Table5[[#This Row],[Mass (g)]]*VLOOKUP(Table5[[#This Row],[Nuclide]],Doedata,4)*37000000000) ->  | J142: =IF(Table5[[#This Row],[Activity (Bq)]]="","",Table5[[#This Row],[Activity (Bq)]]/37000000000) ->  | AD142: Cf-244
D143: =IF(Table5[[#This Row],[Mass (g)]]="","",Table5[[#This Row],[Mass (g)]]*VLOOKUP(Table5[[#This Row],[Nuclide]],Doedata,4)*37000000000) ->  | J143: =IF(Table5[[#This Row],[Activity (Bq)]]="","",Table5[[#This Row],[Activity (Bq)]]/37000000000) ->  | AD143: Cf-246
D144: =IF(Table5[[#This Row],[Mass (g)]]="","",Table5[[#This Row],[Mass (g)]]*VLOOKUP(Table5[[#This Row],[Nuclide]],Doedata,4)*37000000000) ->  | J144: =IF(Table5[[#This Row],[Activity (Bq)]]="","",Table5[[#This Row],[Activity (Bq)]]/37000000000) ->  | AD144: Cf-248
D145: =IF(Table5[[#This Row],[Mass (g)]]="","",Table5[[#This Row],[Mass (g)]]*VLOOKUP(Table5[[#This Row],[Nuclide]],Doedata,4)*37000000000) ->  | J145: =IF(Table5[[#This Row],[Activity (Bq)]]="","",Table5[[#This Row],[Activity (Bq)]]/37000000000) ->  | AD145: Cf-249
D146: =IF(Table5[[#This Row],[Mass (g)]]="","",Table5[[#This Row],[Mass (g)]]*VLOOKUP(Table5[[#This Row],[Nuclide]],Doedata,4)*37000000000) ->  | J146: =IF(Table5[[#This Row],[Activity (Bq)]]="","",Table5[[#This Row],[Activity (Bq)]]/37000000000) ->  | AD146: Cf-250
D147: =IF(Table5[[#This Row],[Mass (g)]]="","",Table5[[#This Row],[Mass (g)]]*VLOOKUP(Table5[[#This Row],[Nuclide]],Doedata,4)*37000000000) ->  | J147: =IF(Table5[[#This Row],[Activity (Bq)]]="","",Table5[[#This Row],[Activity (Bq)]]/37000000000) ->  | AD147: Cf-251
D148: =IF(Table5[[#This Row],[Mass (g)]]="","",Table5[[#This Row],[Mass (g)]]*VLOOKUP(Table5[[#This Row],[Nuclide]],Doedata,4)*37000000000) ->  | J148: =IF(Table5[[#This Row],[Activity (Bq)]]="","",Table5[[#This Row],[Activity (Bq)]]/37000000000) ->  | AD148: Cf-252
D149: =IF(Table5[[#This Row],[Mass (g)]]="","",Table5[[#This Row],[Mass (g)]]*VLOOKUP(Table5[[#This Row],[Nuclide]],Doedata,4)*37000000000) ->  | J149: =IF(Table5[[#This Row],[Activity (Bq)]]="","",Table5[[#This Row],[Activity (Bq)]]/37000000000) ->  | AD149: Cf-253
D150: =IF(Table5[[#This Row],[Mass (g)]]="","",Table5[[#This Row],[Mass (g)]]*VLOOKUP(Table5[[#This Row],[Nuclide]],Doedata,4)*37000000000) ->  | J150: =IF(Table5[[#This Row],[Activity (Bq)]]="","",Table5[[#This Row],[Activity (Bq)]]/37000000000) ->  | AD150: Cf-254
D151: =IF(Table5[[#This Row],[Mass (g)]]="","",Table5[[#This Row],[Mass (g)]]*VLOOKUP(Table5[[#This Row],[Nuclide]],Doedata,4)*37000000000) ->  | J151: =IF(Table5[[#This Row],[Activity (Bq)]]="","",Table5[[#This Row],[Activity (Bq)]]/37000000000) ->  | AD151: Cm-238
D152: =IF(Table5[[#This Row],[Mass (g)]]="","",Table5[[#This Row],[Mass (g)]]*VLOOKUP(Table5[[#This Row],[Nuclide]],Doedata,4)*37000000000) ->  | J152: =IF(Table5[[#This Row],[Activity (Bq)]]="","",Table5[[#This Row],[Activity (Bq)]]/37000000000) ->  | AD152: Cm-240
D153: =IF(Table5[[#This Row],[Mass (g)]]="","",Table5[[#This Row],[Mass (g)]]*VLOOKUP(Table5[[#This Row],[Nuclide]],Doedata,4)*37000000000) ->  | J153: =IF(Table5[[#This Row],[Activity (Bq)]]="","",Table5[[#This Row],[Activity (Bq)]]/37000000000) ->  | AD153: Cm-241
D154: =IF(Table5[[#This Row],[Mass (g)]]="","",Table5[[#This Row],[Mass (g)]]*VLOOKUP(Table5[[#This Row],[Nuclide]],Doedata,4)*37000000000) ->  | J154: =IF(Table5[[#This Row],[Activity (Bq)]]="","",Table5[[#This Row],[Activity (Bq)]]/37000000000) ->  | AD154: Cm-242
D155: =IF(Table5[[#This Row],[Mass (g)]]="","",Table5[[#This Row],[Mass (g)]]*VLOOKUP(Table5[[#This Row],[Nuclide]],Doedata,4)*37000000000) ->  | J155: =IF(Table5[[#This Row],[Activity (Bq)]]="","",Table5[[#This Row],[Activity (Bq)]]/37000000000) ->  | AD155: Cm-243
D156: =IF(Table5[[#This Row],[Mass (g)]]="","",Table5[[#This Row],[Mass (g)]]*VLOOKUP(Table5[[#This Row],[Nuclide]],Doedata,4)*37000000000) ->  | J156: =IF(Table5[[#This Row],[Activity (Bq)]]="","",Table5[[#This Row],[Activity (Bq)]]/37000000000) ->  | AD156: Cm-244
D157: =IF(Table5[[#This Row],[Mass (g)]]="","",Table5[[#This Row],[Mass (g)]]*VLOOKUP(Table5[[#This Row],[Nuclide]],Doedata,4)*37000000000) ->  | J157: =IF(Table5[[#This Row],[Activity (Bq)]]="","",Table5[[#This Row],[Activity (Bq)]]/37000000000) ->  | AD157: Cm-245
D158: =IF(Table5[[#This Row],[Mass (g)]]="","",Table5[[#This Row],[Mass (g)]]*VLOOKUP(Table5[[#This Row],[Nuclide]],Doedata,4)*37000000000) ->  | J158: =IF(Table5[[#This Row],[Activity (Bq)]]="","",Table5[[#This Row],[Activity (Bq)]]/37000000000) ->  | AD158: Cm-246
D159: =IF(Table5[[#This Row],[Mass (g)]]="","",Table5[[#This Row],[Mass (g)]]*VLOOKUP(Table5[[#This Row],[Nuclide]],Doedata,4)*37000000000) ->  | J159: =IF(Table5[[#This Row],[Activity (Bq)]]="","",Table5[[#This Row],[Activity (Bq)]]/37000000000) ->  | AD159: Cm-247
D160: =IF(Table5[[#This Row],[Mass (g)]]="","",Table5[[#This Row],[Mass (g)]]*VLOOKUP(Table5[[#This Row],[Nuclide]],Doedata,4)*37000000000) ->  | J160: =IF(Table5[[#This Row],[Activity (Bq)]]="","",Table5[[#This Row],[Activity (Bq)]]/37000000000) ->  | AD160: Cm-248
D161: =IF(Table5[[#This Row],[Mass (g)]]="","",Table5[[#This Row],[Mass (g)]]*VLOOKUP(Table5[[#This Row],[Nuclide]],Doedata,4)*37000000000) ->  | J161: =IF(Table5[[#This Row],[Activity (Bq)]]="","",Table5[[#This Row],[Activity (Bq)]]/37000000000) ->  | AD161: Cm-249
D162: =IF(Table5[[#This Row],[Mass (g)]]="","",Table5[[#This Row],[Mass (g)]]*VLOOKUP(Table5[[#This Row],[Nuclide]],Doedata,4)*37000000000) ->  | J162: =IF(Table5[[#This Row],[Activity (Bq)]]="","",Table5[[#This Row],[Activity (Bq)]]/37000000000) ->  | AD162: Co-55
D163: =IF(Table5[[#This Row],[Mass (g)]]="","",Table5[[#This Row],[Mass (g)]]*VLOOKUP(Table5[[#This Row],[Nuclide]],Doedata,4)*37000000000) ->  | J163: =IF(Table5[[#This Row],[Activity (Bq)]]="","",Table5[[#This Row],[Activity (Bq)]]/37000000000) ->  | AD163: Co-56
D164: =IF(Table5[[#This Row],[Mass (g)]]="","",Table5[[#This Row],[Mass (g)]]*VLOOKUP(Table5[[#This Row],[Nuclide]],Doedata,4)*37000000000) ->  | J164: =IF(Table5[[#This Row],[Activity (Bq)]]="","",Table5[[#This Row],[Activity (Bq)]]/37000000000) ->  | AD164: Co-57
D165: =IF(Table5[[#This Row],[Mass (g)]]="","",Table5[[#This Row],[Mass (g)]]*VLOOKUP(Table5[[#This Row],[Nuclide]],Doedata,4)*37000000000) ->  | J165: =IF(Table5[[#This Row],[Activity (Bq)]]="","",Table5[[#This Row],[Activity (Bq)]]/37000000000) ->  | AD165: Co-58
D166: =IF(Table5[[#This Row],[Mass (g)]]="","",Table5[[#This Row],[Mass (g)]]*VLOOKUP(Table5[[#This Row],[Nuclide]],Doedata,4)*37000000000) ->  | J166: =IF(Table5[[#This Row],[Activity (Bq)]]="","",Table5[[#This Row],[Activity (Bq)]]/37000000000) ->  | AD166: Co-58m
D167: =IF(Table5[[#This Row],[Mass (g)]]="","",Table5[[#This Row],[Mass (g)]]*VLOOKUP(Table5[[#This Row],[Nuclide]],Doedata,4)*37000000000) ->  | J167: =IF(Table5[[#This Row],[Activity (Bq)]]="","",Table5[[#This Row],[Activity (Bq)]]/37000000000) ->  | AD167: Co-60
D168: =IF(Table5[[#This Row],[Mass (g)]]="","",Table5[[#This Row],[Mass (g)]]*VLOOKUP(Table5[[#This Row],[Nuclide]],Doedata,4)*37000000000) ->  | J168: =IF(Table5[[#This Row],[Activity (Bq)]]="","",Table5[[#This Row],[Activity (Bq)]]/37000000000) ->  | AD168: Co-60m
D169: =IF(Table5[[#This Row],[Mass (g)]]="","",Table5[[#This Row],[Mass (g)]]*VLOOKUP(Table5[[#This Row],[Nuclide]],Doedata,4)*37000000000) ->  | J169: =IF(Table5[[#This Row],[Activity (Bq)]]="","",Table5[[#This Row],[Activity (Bq)]]/37000000000) ->  | AD169: Co-61
D170: =IF(Table5[[#This Row],[Mass (g)]]="","",Table5[[#This Row],[Mass (g)]]*VLOOKUP(Table5[[#This Row],[Nuclide]],Doedata,4)*37000000000) ->  | J170: =IF(Table5[[#This Row],[Activity (Bq)]]="","",Table5[[#This Row],[Activity (Bq)]]/37000000000) ->  | AD170: Co-62m
D171: =IF(Table5[[#This Row],[Mass (g)]]="","",Table5[[#This Row],[Mass (g)]]*VLOOKUP(Table5[[#This Row],[Nuclide]],Doedata,4)*37000000000) ->  | J171: =IF(Table5[[#This Row],[Activity (Bq)]]="","",Table5[[#This Row],[Activity (Bq)]]/37000000000) ->  | AD171: Cr-48
D172: =IF(Table5[[#This Row],[Mass (g)]]="","",Table5[[#This Row],[Mass (g)]]*VLOOKUP(Table5[[#This Row],[Nuclide]],Doedata,4)*37000000000) ->  | J172: =IF(Table5[[#This Row],[Activity (Bq)]]="","",Table5[[#This Row],[Activity (Bq)]]/37000000000) ->  | AD172: Cr-49
D173: =IF(Table5[[#This Row],[Mass (g)]]="","",Table5[[#This Row],[Mass (g)]]*VLOOKUP(Table5[[#This Row],[Nuclide]],Doedata,4)*37000000000) ->  | J173: =IF(Table5[[#This Row],[Activity (Bq)]]="","",Table5[[#This Row],[Activity (Bq)]]/37000000000) ->  | AD173: Cr-51
D174: =IF(Table5[[#This Row],[Mass (g)]]="","",Table5[[#This Row],[Mass (g)]]*VLOOKUP(Table5[[#This Row],[Nuclide]],Doedata,4)*37000000000) ->  | J174: =IF(Table5[[#This Row],[Activity (Bq)]]="","",Table5[[#This Row],[Activity (Bq)]]/37000000000) ->  | AD174: Cs-125
D175: =IF(Table5[[#This Row],[Mass (g)]]="","",Table5[[#This Row],[Mass (g)]]*VLOOKUP(Table5[[#This Row],[Nuclide]],Doedata,4)*37000000000) ->  | J175: =IF(Table5[[#This Row],[Activity (Bq)]]="","",Table5[[#This Row],[Activity (Bq)]]/37000000000) ->  | AD175: Cs-127
D176: =IF(Table5[[#This Row],[Mass (g)]]="","",Table5[[#This Row],[Mass (g)]]*VLOOKUP(Table5[[#This Row],[Nuclide]],Doedata,4)*37000000000) ->  | J176: =IF(Table5[[#This Row],[Activity (Bq)]]="","",Table5[[#This Row],[Activity (Bq)]]/37000000000) ->  | AD176: Cs-129
D177: =IF(Table5[[#This Row],[Mass (g)]]="","",Table5[[#This Row],[Mass (g)]]*VLOOKUP(Table5[[#This Row],[Nuclide]],Doedata,4)*37000000000) ->  | J177: =IF(Table5[[#This Row],[Activity (Bq)]]="","",Table5[[#This Row],[Activity (Bq)]]/37000000000) ->  | AD177: Cs-130
D178: =IF(Table5[[#This Row],[Mass (g)]]="","",Table5[[#This Row],[Mass (g)]]*VLOOKUP(Table5[[#This Row],[Nuclide]],Doedata,4)*37000000000) ->  | J178: =IF(Table5[[#This Row],[Activity (Bq)]]="","",Table5[[#This Row],[Activity (Bq)]]/37000000000) ->  | AD178: Cs-131
D179: =IF(Table5[[#This Row],[Mass (g)]]="","",Table5[[#This Row],[Mass (g)]]*VLOOKUP(Table5[[#This Row],[Nuclide]],Doedata,4)*37000000000) ->  | J179: =IF(Table5[[#This Row],[Activity (Bq)]]="","",Table5[[#This Row],[Activity (Bq)]]/37000000000) ->  | AD179: Cs-132
D180: =IF(Table5[[#This Row],[Mass (g)]]="","",Table5[[#This Row],[Mass (g)]]*VLOOKUP(Table5[[#This Row],[Nuclide]],Doedata,4)*37000000000) ->  | J180: =IF(Table5[[#This Row],[Activity (Bq)]]="","",Table5[[#This Row],[Activity (Bq)]]/37000000000) ->  | AD180: Cs-134
D181: =IF(Table5[[#This Row],[Mass (g)]]="","",Table5[[#This Row],[Mass (g)]]*VLOOKUP(Table5[[#This Row],[Nuclide]],Doedata,4)*37000000000) ->  | J181: =IF(Table5[[#This Row],[Activity (Bq)]]="","",Table5[[#This Row],[Activity (Bq)]]/37000000000) ->  | AD181: Cs-134m
D182: =IF(Table5[[#This Row],[Mass (g)]]="","",Table5[[#This Row],[Mass (g)]]*VLOOKUP(Table5[[#This Row],[Nuclide]],Doedata,4)*37000000000) ->  | J182: =IF(Table5[[#This Row],[Activity (Bq)]]="","",Table5[[#This Row],[Activity (Bq)]]/37000000000) ->  | AD182: Cs-135
D183: =IF(Table5[[#This Row],[Mass (g)]]="","",Table5[[#This Row],[Mass (g)]]*VLOOKUP(Table5[[#This Row],[Nuclide]],Doedata,4)*37000000000) ->  | J183: =IF(Table5[[#This Row],[Activity (Bq)]]="","",Table5[[#This Row],[Activity (Bq)]]/37000000000) ->  | AD183: Cs-135m
D184: =IF(Table5[[#This Row],[Mass (g)]]="","",Table5[[#This Row],[Mass (g)]]*VLOOKUP(Table5[[#This Row],[Nuclide]],Doedata,4)*37000000000) ->  | J184: =IF(Table5[[#This Row],[Activity (Bq)]]="","",Table5[[#This Row],[Activity (Bq)]]/37000000000) ->  | AD184: Cs-136
D185: =IF(Table5[[#This Row],[Mass (g)]]="","",Table5[[#This Row],[Mass (g)]]*VLOOKUP(Table5[[#This Row],[Nuclide]],Doedata,4)*37000000000) ->  | J185: =IF(Table5[[#This Row],[Activity (Bq)]]="","",Table5[[#This Row],[Activity (Bq)]]/37000000000) ->  | AD185: Cs-137
D186: =IF(Table5[[#This Row],[Mass (g)]]="","",Table5[[#This Row],[Mass (g)]]*VLOOKUP(Table5[[#This Row],[Nuclide]],Doedata,4)*37000000000) ->  | J186: =IF(Table5[[#This Row],[Activity (Bq)]]="","",Table5[[#This Row],[Activity (Bq)]]/37000000000) ->  | AD186: Cs-138
D187: =IF(Table5[[#This Row],[Mass (g)]]="","",Table5[[#This Row],[Mass (g)]]*VLOOKUP(Table5[[#This Row],[Nuclide]],Doedata,4)*37000000000) ->  | J187: =IF(Table5[[#This Row],[Activity (Bq)]]="","",Table5[[#This Row],[Activity (Bq)]]/37000000000) ->  | AD187: Cu-60
D188: =IF(Table5[[#This Row],[Mass (g)]]="","",Table5[[#This Row],[Mass (g)]]*VLOOKUP(Table5[[#This Row],[Nuclide]],Doedata,4)*37000000000) ->  | J188: =IF(Table5[[#This Row],[Activity (Bq)]]="","",Table5[[#This Row],[Activity (Bq)]]/37000000000) ->  | AD188: Cu-61
D189: =IF(Table5[[#This Row],[Mass (g)]]="","",Table5[[#This Row],[Mass (g)]]*VLOOKUP(Table5[[#This Row],[Nuclide]],Doedata,4)*37000000000) ->  | J189: =IF(Table5[[#This Row],[Activity (Bq)]]="","",Table5[[#This Row],[Activity (Bq)]]/37000000000) ->  | AD189: Cu-64
D190: =IF(Table5[[#This Row],[Mass (g)]]="","",Table5[[#This Row],[Mass (g)]]*VLOOKUP(Table5[[#This Row],[Nuclide]],Doedata,4)*37000000000) ->  | J190: =IF(Table5[[#This Row],[Activity (Bq)]]="","",Table5[[#This Row],[Activity (Bq)]]/37000000000) ->  | AD190: Cu-67
D191: =IF(Table5[[#This Row],[Mass (g)]]="","",Table5[[#This Row],[Mass (g)]]*VLOOKUP(Table5[[#This Row],[Nuclide]],Doedata,4)*37000000000) ->  | J191: =IF(Table5[[#This Row],[Activity (Bq)]]="","",Table5[[#This Row],[Activity (Bq)]]/37000000000) ->  | AD191: Dy-155
D192: =IF(Table5[[#This Row],[Mass (g)]]="","",Table5[[#This Row],[Mass (g)]]*VLOOKUP(Table5[[#This Row],[Nuclide]],Doedata,4)*37000000000) ->  | J192: =IF(Table5[[#This Row],[Activity (Bq)]]="","",Table5[[#This Row],[Activity (Bq)]]/37000000000) ->  | AD192: Dy-157
D193: =IF(Table5[[#This Row],[Mass (g)]]="","",Table5[[#This Row],[Mass (g)]]*VLOOKUP(Table5[[#This Row],[Nuclide]],Doedata,4)*37000000000) ->  | J193: =IF(Table5[[#This Row],[Activity (Bq)]]="","",Table5[[#This Row],[Activity (Bq)]]/37000000000) ->  | AD193: Dy-159
D194: =IF(Table5[[#This Row],[Mass (g)]]="","",Table5[[#This Row],[Mass (g)]]*VLOOKUP(Table5[[#This Row],[Nuclide]],Doedata,4)*37000000000) ->  | J194: =IF(Table5[[#This Row],[Activity (Bq)]]="","",Table5[[#This Row],[Activity (Bq)]]/37000000000) ->  | AD194: Dy-165
D195: =IF(Table5[[#This Row],[Mass (g)]]="","",Table5[[#This Row],[Mass (g)]]*VLOOKUP(Table5[[#This Row],[Nuclide]],Doedata,4)*37000000000) ->  | J195: =IF(Table5[[#This Row],[Activity (Bq)]]="","",Table5[[#This Row],[Activity (Bq)]]/37000000000) ->  | AD195: Dy-166
D196: =IF(Table5[[#This Row],[Mass (g)]]="","",Table5[[#This Row],[Mass (g)]]*VLOOKUP(Table5[[#This Row],[Nuclide]],Doedata,4)*37000000000) ->  | J196: =IF(Table5[[#This Row],[Activity (Bq)]]="","",Table5[[#This Row],[Activity (Bq)]]/37000000000) ->  | AD196: Er-161
D197: =IF(Table5[[#This Row],[Mass (g)]]="","",Table5[[#This Row],[Mass (g)]]*VLOOKUP(Table5[[#This Row],[Nuclide]],Doedata,4)*37000000000) ->  | J197: =IF(Table5[[#This Row],[Activity (Bq)]]="","",Table5[[#This Row],[Activity (Bq)]]/37000000000) ->  | AD197: Er-165
D198: =IF(Table5[[#This Row],[Mass (g)]]="","",Table5[[#This Row],[Mass (g)]]*VLOOKUP(Table5[[#This Row],[Nuclide]],Doedata,4)*37000000000) ->  | J198: =IF(Table5[[#This Row],[Activity (Bq)]]="","",Table5[[#This Row],[Activity (Bq)]]/37000000000) ->  | AD198: Er-169
D199: =IF(Table5[[#This Row],[Mass (g)]]="","",Table5[[#This Row],[Mass (g)]]*VLOOKUP(Table5[[#This Row],[Nuclide]],Doedata,4)*37000000000) ->  | J199: =IF(Table5[[#This Row],[Activity (Bq)]]="","",Table5[[#This Row],[Activity (Bq)]]/37000000000) ->  | AD199: Er-171
D200: =IF(Table5[[#This Row],[Mass (g)]]="","",Table5[[#This Row],[Mass (g)]]*VLOOKUP(Table5[[#This Row],[Nuclide]],Doedata,4)*37000000000) ->  | J200: =IF(Table5[[#This Row],[Activity (Bq)]]="","",Table5[[#This Row],[Activity (Bq)]]/37000000000) ->  | AD200: Er-172
D201: =IF(Table5[[#This Row],[Mass (g)]]="","",Table5[[#This Row],[Mass (g)]]*VLOOKUP(Table5[[#This Row],[Nuclide]],Doedata,4)*37000000000) ->  | J201: =IF(Table5[[#This Row],[Activity (Bq)]]="","",Table5[[#This Row],[Activity (Bq)]]/37000000000) ->  | AD201: Es-250
D202: =IF(Table5[[#This Row],[Mass (g)]]="","",Table5[[#This Row],[Mass (g)]]*VLOOKUP(Table5[[#This Row],[Nuclide]],Doedata,4)*37000000000) ->  | J202: =IF(Table5[[#This Row],[Activity (Bq)]]="","",Table5[[#This Row],[Activity (Bq)]]/37000000000) ->  | AD202: Es-251
... 579 more rows

Sheet Nuclide Totals
B3: Values
A4: Row Labels | B4: Sum of Mass (g) | C4: Sum of Activity (Bq) | D4: Sum of Activity (Ci)
A5: (blank) | C5: 0 | D5: 0
A6: Grand Total | C6: 0 | D6: 0

Sheet Example Data
A1: Parameter | B1: Value
A2: Last Name | B2: Smith
A3: First Name | B3: John
A4: Facility Name | B4: SLAC
A5: Address Line 1 | B5: 2575 Sand Hill Road
A6: Address Line 2 | B6: M/S - 48
A7: City | B7: Menlo Park
A8: State | B8: CA
A9: Zip Code | B9: 94025
A10: Country | B10: U.S.A.
A11: Telephone | B11: 650-926-1234
A12: Proposal Number | B12: 3478
A13: Date of Notice | B13: 2010-11-01
A14: Beam Line | B14: 6-2 | C14: *Enter data with a leading apostrophe (e.g., '3-1)
A15: Run Date | B15: 2010-12-01 | C15: *Required for 1 Day Notice
A16: End Run Date | C16: *Required for 1 Day Notice
A17: RMA Number | B17: 1-24789 | C17: *Required for 1 Day Notice
A18: Number of Packages | B18: 1 | C18: *Required for 1 Day Notice
A19: Number of Holders | B19: 3 | C19: *Required for 1 Day Notice
A21: Mouse over column headers for context sensitive help.
B22: Totals: | C22: =SUM(C24:C214) -> 6.552000001 | D22: =SUM(D24:D214) -> 2949836.84
A23: Sample Number | B23: Nuclide | C23: Mass (g) | D23: Activity (Bq) | E23: Physical State | F23: Chemical State | G23: Notice Type | H23: Cont Cat No | I23: Shipping Package Number | J23: Activity (Ci)
A24: 34578T | B24: U-235 | C24: 0.002 | D24: =IF(Table58[[#This Row],[Mass (g)]]="","",Table58[[#This Row],[Mass (g)]]*VLOOKUP(Table58[[#This Row],[Nuclide]],Doedata,4)*37000000000) -> 159.84 | E24: Solid | F24: Oxide | G24: 30 | H24: 1b | I24: 1 | J24: =IF(Table58[[#This Row],[Activity (Bq)]]="","",Table58[[#This Row],[Activity (Bq)]]/37000000000) -> 4.32e-09
A25: 34578T | B25: U-236 | C25: 0.5 | D25: =IF(Table58[[#This Row],[Mass (g)]]="","",Table58[[#This Row],[Mass (g)]]*VLOOKUP(Table58[[#This Row],[Nuclide]],Doedata,4)*37000000000) -> 1196950 | E25: Solid | F25: Oxide | G25: 30 | H25: 1b | I25: 1 | J25: =IF(Table58[[#This Row],[Activity (Bq)]]="","",Table58[[#This Row],[Activity (Bq)]]/37000000000) -> 3.235e-05 | L25: Sample # 34578T
A26: 34578T | B26: U-237 | C26: 5e-10 | D26: =IF(Table58[[#This Row],[Mass (g)]]="","",Table58[[#This Row],[Mass (g)]]*VLOOKUP(Table58[[#This Row],[Nuclide]],Doedata,4)*37000000000) -> 1509600 | E26: Solid | F26: Oxide | G26: 30 | H26: 1b | I26: 1 | J26: =IF(Table58[[#This Row],[Activity (Bq)]]="","",Table58[[#This Row],[Activity (Bq)]]/37000000000) -> 4.08e-05
A27: 34578T | B27: U-238 | C27: 0.5 | D27: =IF(Table58[[#This Row],[Mass (g)]]="","",Table58[[#This Row],[Mass (g)]]*VLOOKUP(Table58[[#This Row],[Nuclide]],Doedata,4)*37000000000) -> 6216 | E27: Solid | F27: Oxide | G27: 30 | H27: 1b | I27: 1 | J27: =IF(Table58[[#This Row],[Activity (Bq)]]="","",Table58[[#This Row],[Activity (Bq)]]/37000000000) -> 1.68e-07
A28: 72478L | B28: U-235 | C28: 0.5 | D28: =IF(Table58[[#This Row],[Mass (g)]]="","",Table58[[#This Row],[Mass (g)]]*VLOOKUP(Table58[[#This Row],[Nuclide]],Doedata,4)*37000000000) -> 39960 | E28: Solid | F28: Oxide | G28: 30 | H28: 1c | I28: 1 | J28: =IF(Table58[[#This Row],[Activity (Bq)]]="","",Table58[[#This Row],[Activity (Bq)]]/37000000000) -> 1.08e-06
A29: 72478L | B29: U-236 | C29: 0.05 | D29: =IF(Table58[[#This Row],[Mass (g)]]="","",Table58[[#This Row],[Mass (g)]]*VLOOKUP(Table58[[#This Row],[Nuclide]],Doedata,4)*37000000000) -> 119695 | E29: Solid | F29: Oxide | G29: 30 | H29: 1c | I29: 1 | J29: =IF(Table58[[#This Row],[Activity (Bq)]]="","",Table58[[#This Row],[Activity (Bq)]]/37000000000) -> 3.235e-06 | L29: Sample # 72478L
A30: 72478L | B30: U-237 | C30: 5e-12 | D30: =IF(Table58[[#This Row],[Mass (g)]]="","",Table58[[#This Row],[Mass (g)]]*VLOOKUP(Table58[[#This Row],[Nuclide]],Doedata,4)*37000000000) -> 15096 | E30: Solid | F30: Oxide | G30: 30 | H30: 1c | I30: 1 | J30: =IF(Table58[[#This Row],[Activity (Bq)]]="","",Table58[[#This Row],[Activity (Bq)]]/37000000000) -> 4.08e-07
A31: 72478L | B31: U-238 | C31: 5 | D31: =IF(Table58[[#This Row],[Mass (g)]]="","",Table58[[#This Row],[Mass (g)]]*VLOOKUP(Table58[[#This Row],[Nuclide]],Doedata,4)*37000000000) -> 62160 | E31: Solid | F31: Oxide | G31: 30 | H31: 1c | I31: 1 | J31: =IF(Table58[[#This Row],[Activity (Bq)]]="","",Table58[[#This Row],[Activity (Bq)]]/37000000000) -> 1.68e-06
D32: =IF(Table58[[#This Row],[Mass (g)]]="","",Table58[[#This Row],[Mass (g)]]*VLOOKUP(Table58[[#This Row],[Nuclide]],Doedata,4)*37000000000) ->  | J32: =IF(Table58[[#This Row],[Activity (Bq)]]="","",Table58[[#This Row],[Activity (Bq)]]/37000000000) -> 
D33: =IF(Table58[[#This Row],[Mass (g)]]="","",Table58[[#This Row],[Mass (g)]]*VLOOKUP(Table58[[#This Row],[Nuclide]],Doedata,4)*37000000000) ->  | J33: =IF(Table58[[#This Row],[Activity (Bq)]]="","",Table58[[#This Row],[Activity (Bq)]]/37000000000) -> 
D34: =IF(Table58[[#This Row],[Mass (g)]]="","",Table58[[#This Row],[Mass (g)]]*VLOOKUP(Table58[[#This Row],[Nuclide]],Doedata,4)*37000000000) ->  | J34: =IF(Table58[[#This Row],[Activity (Bq)]]="","",Table58[[#This Row],[Activity (Bq)]]/37000000000) -> 
D35: =IF(Table58[[#This Row],[Mass (g)]]="","",Table58[[#This Row],[Mass (g)]]*VLOOKUP(Table58[[#This Row],[Nuclide]],Doedata,4)*37000000000) ->  | J35: =IF(Table58[[#This Row],[Activity (Bq)]]="","",Table58[[#This Row],[Activity (Bq)]]/37000000000) -> 
D36: =IF(Table58[[#This Row],[Mass (g)]]="","",Table58[[#This Row],[Mass (g)]]*VLOOKUP(Table58[[#This Row],[Nuclide]],Doedata,4)*37000000000) ->  | J36: =IF(Table58[[#This Row],[Activity (Bq)]]="","",Table58[[#This Row],[Activity (Bq)]]/37000000000) -> 
D37: =IF(Table58[[#This Row],[Mass (g)]]="","",Table58[[#This Row],[Mass (g)]]*VLOOKUP(Table58[[#This Row],[Nuclide]],Doedata,4)*37000000000) ->  | J37: =IF(Table58[[#This Row],[Activity (Bq)]]="","",Table58[[#This Row],[Activity (Bq)]]/37000000000) -> 
D38: =IF(Table58[[#This Row],[Mass (g)]]="","",Table58[[#This Row],[Mass (g)]]*VLOOKUP(Table58[[#This Row],[Nuclide]],Doedata,4)*37000000000) ->  | J38: =IF(Table58[[#This Row],[Activity (Bq)]]="","",Table58[[#This Row],[Activity (Bq)]]/37000000000) -> 
D39: =IF(Table58[[#This Row],[Mass (g)]]="","",Table58[[#This Row],[Mass (g)]]*VLOOKUP(Table58[[#This Row],[Nuclide]],Doedata,4)*37000000000) ->  | J39: =IF(Table58[[#This Row],[Activity (Bq)]]="","",Table58[[#This Row],[Activity (Bq)]]/37000000000) -> 
D40: =IF(Table58[[#This Row],[Mass (g)]]="","",Table58[[#This Row],[Mass (g)]]*VLOOKUP(Table58[[#This Row],[Nuclide]],Doedata,4)*37000000000) ->  | J40: =IF(Table58[[#This Row],[Activity (Bq)]]="","",Table58[[#This Row],[Activity (Bq)]]/37000000000) -> 
D41: =IF(Table58[[#This Row],[Mass (g)]]="","",Table58[[#This Row],[Mass (g)]]*VLOOKUP(Table58[[#This Row],[Nuclide]],Doedata,4)*37000000000) ->  | J41: =IF(Table58[[#This Row],[Activity (Bq)]]="","",Table58[[#This Row],[Activity (Bq)]]/37000000000) -> 
D42: =IF(Table58[[#This Row],[Mass (g)]]="","",Table58[[#This Row],[Mass (g)]]*VLOOKUP(Table58[[#This Row],[Nuclide]],Doedata,4)*37000000000) ->  | J42: =IF(Table58[[#This Row],[Activity (Bq)]]="","",Table58[[#This Row],[Activity (Bq)]]/37000000000) -> 
D43: =IF(Table58[[#This Row],[Mass (g)]]="","",Table58[[#This Row],[Mass (g)]]*VLOOKUP(Table58[[#This Row],[Nuclide]],Doedata,4)*37000000000) ->  | J43: =IF(Table58[[#This Row],[Activity (Bq)]]="","",Table58[[#This Row],[Activity (Bq)]]/37000000000) -> 
D44: =IF(Table58[[#This Row],[Mass (g)]]="","",Table58[[#This Row],[Mass (g)]]*VLOOKUP(Table58[[#This Row],[Nuclide]],Doedata,4)*37000000000) ->  | J44: =IF(Table58[[#This Row],[Activity (Bq)]]="","",Table58[[#This Row],[Activity (Bq)]]/37000000000) -> 
D45: =IF(Table58[[#This Row],[Mass (g)]]="","",Table58[[#This Row],[Mass (g)]]*VLOOKUP(Table58[[#This Row],[Nuclide]],Doedata,4)*37000000000) ->  | J45: =IF(Table58[[#This Row],[Activity (Bq)]]="","",Table58[[#This Row],[Activity (Bq)]]/37000000000) -> 
D46: =IF(Table58[[#This Row],[Mass (g)]]="","",Table58[[#This Row],[Mass (g)]]*VLOOKUP(Table58[[#This Row],[Nuclide]],Doedata,4)*37000000000) ->  | J46: =IF(Table58[[#This Row],[Activity (Bq)]]="","",Table58[[#This Row],[Activity (Bq)]]/37000000000) -> 
D47: =IF(Table58[[#This Row],[Mass (g)]]="","",Table58[[#This Row],[Mass (g)]]*VLOOKUP(Table58[[#This Row],[Nuclide]],Doedata,4)*37000000000) ->  | J47: =IF(Table58[[#This Row],[Activity (Bq)]]="","",Table58[[#This Row],[Activity (Bq)]]/37000000000) -> 
D48: =IF(Table58[[#This Row],[Mass (g)]]="","",Table58[[#This Row],[Mass (g)]]*VLOOKUP(Table58[[#This Row],[Nuclide]],Doedata,4)*37000000000) ->  | J48: =IF(Table58[[#This Row],[Activity (Bq)]]="","",Table58[[#This Row],[Activity (Bq)]]/37000000000) -> 
D49: =IF(Table58[[#This Row],[Mass (g)]]="","",Table58[[#This Row],[Mass (g)]]*VLOOKUP(Table58[[#This Row],[Nuclide]],Doedata,4)*37000000000) ->  | J49: =IF(Table58[[#This Row],[Activity (Bq)]]="","",Table58[[#This Row],[Activity (Bq)]]/37000000000) -> 
D50: =IF(Table58[[#This Row],[Mass (g)]]="","",Table58[[#This Row],[Mass (g)]]*VLOOKUP(Table58[[#This Row],[Nuclide]],Doedata,4)*37000000000) ->  | J50: =IF(Table58[[#This Row],[Activity (Bq)]]="","",Table58[[#This Row],[Activity (Bq)]]/37000000000) -> 
D51: =IF(Table58[[#This Row],[Mass (g)]]="","",Table58[[#This Row],[Mass (g)]]*VLOOKUP(Table58[[#This Row],[Nuclide]],Doedata,4)*37000000000) ->  | J51: =IF(Table58[[#This Row],[Activity (Bq)]]="","",Table58[[#This Row],[Activity (Bq)]]/37000000000) -> 
D52: =IF(Table58[[#This Row],[Mass (g)]]="","",Table58[[#This Row],[Mass (g)]]*VLOOKUP(Table58[[#This Row],[Nuclide]],Doedata,4)*37000000000) ->  | J52: =IF(Table58[[#This Row],[Activity (Bq)]]="","",Table58[[#This Row],[Activity (Bq)]]/37000000000) -> 
D53: =IF(Table58[[#This Row],[Mass (g)]]="","",Table58[[#This Row],[Mass (g)]]*VLOOKUP(Table58[[#This Row],[Nuclide]],Doedata,4)*37000000000) ->  | J53: =IF(Table58[[#This Row],[Activity (Bq)]]="","",Table58[[#This Row],[Activity (Bq)]]/37000000000) -> 
D54: =IF(Table58[[#This Row],[Mass (g)]]="","",Table58[[#This Row],[Mass (g)]]*VLOOKUP(Table58[[#This Row],[Nuclide]],Doedata,4)*37000000000) ->  | J54: =IF(Table58[[#This Row],[Activity (Bq)]]="","",Table58[[#This Row],[Activity (Bq)]]/37000000000) -> 
D55: =IF(Table58[[#This Row],[Mass (g)]]="","",Table58[[#This Row],[Mass (g)]]*VLOOKUP(Table58[[#This Row],[Nuclide]],Doedata,4)*37000000000) ->  | J55: =IF(Table58[[#This Row],[Activity (Bq)]]="","",Table58[[#This Row],[Activity (Bq)]]/37000000000) -> 
D56: =IF(Table58[[#This Row],[Mass (g)]]="","",Table58[[#This Row],[Mass (g)]]*VLOOKUP(Table58[[#This Row],[Nuclide]],Doedata,4)*37000000000) ->  | J56: =IF(Table58[[#This Row],[Activity (Bq)]]="","",Table58[[#This Row],[Activity (Bq)]]/37000000000) -> 
D57: =IF(Table58[[#This Row],[Mass (g)]]="","",Table58[[#This Row],[Mass (g)]]*VLOOKUP(Table58[[#This Row],[Nuclide]],Doedata,4)*37000000000) ->  | J57: =IF(Table58[[#This Row],[Activity (Bq)]]="","",Table58[[#This Row],[Activity (Bq)]]/37000000000) -> 
D58: =IF(Table58[[#This Row],[Mass (g)]]="","",Table58[[#This Row],[Mass (g)]]*VLOOKUP(Table58[[#This Row],[Nuclide]],Doedata,4)*37000000000) ->  | J58: =IF(Table58[[#This Row],[Activity (Bq)]]="","",Table58[[#This Row],[Activity (Bq)]]/37000000000) -> 
D59: =IF(Table58[[#This Row],[Mass (g)]]="","",Table58[[#This Row],[Mass (g)]]*VLOOKUP(Table58[[#This Row],[Nuclide]],Doedata,4)*37000000000) ->  | J59: =IF(Table58[[#This Row],[Activity (Bq)]]="","",Table58[[#This Row],[Activity (Bq)]]/37000000000) -> 
D60: =IF(Table58[[#This Row],[Mass (g)]]="","",Table58[[#This Row],[Mass (g)]]*VLOOKUP(Table58[[#This Row],[Nuclide]],Doedata,4)*37000000000) ->  | J60: =IF(Table58[[#This Row],[Activity (Bq)]]="","",Table58[[#This Row],[Activity (Bq)]]/37000000000) -> 
D61: =IF(Table58[[#This Row],[Mass (g)]]="","",Table58[[#This Row],[Mass (g)]]*VLOOKUP(Table58[[#This Row],[Nuclide]],Doedata,4)*37000000000) ->  | J61: =IF(Table58[[#This Row],[Activity (Bq)]]="","",Table58[[#This Row],[Activity (Bq)]]/37000000000) -> 
D62: =IF(Table58[[#This Row],[Mass (g)]]="","",Table58[[#This Row],[Mass (g)]]*VLOOKUP(Table58[[#This Row],[Nuclide]],Doedata,4)*37000000000) ->  | J62: =IF(Table58[[#This Row],[Activity (Bq)]]="","",Table58[[#This Row],[Activity (Bq)]]/37000000000) -> 
D63: =IF(Table58[[#This Row],[Mass (g)]]="","",Table58[[#This Row],[Mass (g)]]*VLOOKUP(Table58[[#This Row],[Nuclide]],Doedata,4)*37000000000) ->  | J63: =IF(Table58[[#This Row],[Activity (Bq)]]="","",Table58[[#This Row],[Activity (Bq)]]/37000000000) -> 
D64: =IF(Table58[[#This Row],[Mass (g)]]="","",Table58[[#This Row],[Mass (g)]]*VLOOKUP(Table58[[#This Row],[Nuclide]],Doedata,4)*37000000000) ->  | J64: =IF(Table58[[#This Row],[Activity (Bq)]]="","",Table58[[#This Row],[Activity (Bq)]]/37000000000) -> 
D65: =IF(Table58[[#This Row],[Mass (g)]]="","",Table58[[#This Row],[Mass (g)]]*VLOOKUP(Table58[[#This Row],[Nuclide]],Doedata,4)*37000000000) ->  | J65: =IF(Table58[[#This Row],[Activity (Bq)]]="","",Table58[[#This Row],[Activity (Bq)]]/37000000000) -> 
D66: =IF(Table58[[#This Row],[Mass (g)]]="","",Table58[[#This Row],[Mass (g)]]*VLOOKUP(Table58[[#This Row],[Nuclide]],Doedata,4)*37000000000) ->  | J66: =IF(Table58[[#This Row],[Activity (Bq)]]="","",Table58[[#This Row],[Activity (Bq)]]/37000000000) -> 
D67: =IF(Table58[[#This Row],[Mass (g)]]="","",Table58[[#This Row],[Mass (g)]]*VLOOKUP(Table58[[#This Row],[Nuclide]],Doedata,4)*37000000000) ->  | J67: =IF(Table58[[#This Row],[Activity (Bq)]]="","",Table58[[#This Row],[Activity (Bq)]]/37000000000) -> 
D68: =IF(Table58[[#This Row],[Mass (g)]]="","",Table58[[#This Row],[Mass (g)]]*VLOOKUP(Table58[[#This Row],[Nuclide]],Doedata,4)*37000000000) ->  | J68: =IF(Table58[[#This Row],[Activity (Bq)]]="","",Table58[[#This Row],[Activity (Bq)]]/37000000000) -> 
D69: =IF(Table58[[#This Row],[Mass (g)]]="","",Table58[[#This Row],[Mass (g)]]*VLOOKUP(Table58[[#This Row],[Nuclide]],Doedata,4)*37000000000) ->  | J69: =IF(Table58[[#This Row],[Activity (Bq)]]="","",Table58[[#This Row],[Activity (Bq)]]/37000000000) -> 
D70: =IF(Table58[[#This Row],[Mass (g)]]="","",Table58[[#This Row],[Mass (g)]]*VLOOKUP(Table58[[#This Row],[Nuclide]],Doedata,4)*37000000000) ->  | J70: =IF(Table58[[#This Row],[Activity (Bq)]]="","",Table58[[#This Row],[Activity (Bq)]]/37000000000) -> 
D71: =IF(Table58[[#This Row],[Mass (g)]]="","",Table58[[#This Row],[Mass (g)]]*VLOOKUP(Table58[[#This Row],[Nuclide]],Doedata,4)*37000000000) ->  | J71: =IF(Table58[[#This Row],[Activity (Bq)]]="","",Table58[[#This Row],[Activity (Bq)]]/37000000000) -> 
D72: =IF(Table58[[#This Row],[Mass (g)]]="","",Table58[[#This Row],[Mass (g)]]*VLOOKUP(Table58[[#This Row],[Nuclide]],Doedata,4)*37000000000) ->  | J72: =IF(Table58[[#This Row],[Activity (Bq)]]="","",Table58[[#This Row],[Activity (Bq)]]/37000000000) -> 
D73: =IF(Table58[[#This Row],[Mass (g)]]="","",Table58[[#This Row],[Mass (g)]]*VLOOKUP(Table58[[#This Row],[Nuclide]],Doedata,4)*37000000000) ->  | J73: =IF(Table58[[#This Row],[Activity (Bq)]]="","",Table58[[#This Row],[Activity (Bq)]]/37000000000) -> 
D74: =IF(Table58[[#This Row],[Mass (g)]]="","",Table58[[#This Row],[Mass (g)]]*VLOOKUP(Table58[[#This Row],[Nuclide]],Doedata,4)*37000000000) ->  | J74: =IF(Table58[[#This Row],[Activity (Bq)]]="","",Table58[[#This Row],[Activity (Bq)]]/37000000000) -> 
D75: =IF(Table58[[#This Row],[Mass (g)]]="","",Table58[[#This Row],[Mass (g)]]*VLOOKUP(Table58[[#This Row],[Nuclide]],Doedata,4)*37000000000) ->  | J75: =IF(Table58[[#This Row],[Activity (Bq)]]="","",Table58[[#This Row],[Activity (Bq)]]/37000000000) -> 
D76: =IF(Table58[[#This Row],[Mass (g)]]="","",Table58[[#This Row],[Mass (g)]]*VLOOKUP(Table58[[#This Row],[Nuclide]],Doedata,4)*37000000000) ->  | J76: =IF(Table58[[#This Row],[Activity (Bq)]]="","",Table58[[#This Row],[Activity (Bq)]]/37000000000) -> 
D77: =IF(Table58[[#This Row],[Mass (g)]]="","",Table58[[#This Row],[Mass (g)]]*VLOOKUP(Table58[[#This Row],[Nuclide]],Doedata,4)*37000000000) ->  | J77: =IF(Table58[[#This Row],[Activity (Bq)]]="","",Table58[[#This Row],[Activity (Bq)]]/37000000000) -> 
D78: =IF(Table58[[#This Row],[Mass (g)]]="","",Table58[[#This Row],[Mass (g)]]*VLOOKUP(Table58[[#This Row],[Nuclide]],Doedata,4)*37000000000) ->  | J78: =IF(Table58[[#This Row],[Activity (Bq)]]="","",Table58[[#This Row],[Activity (Bq)]]/37000000000) -> 
D79: =IF(Table58[[#This Row],[Mass (g)]]="","",Table58[[#This Row],[Mass (g)]]*VLOOKUP(Table58[[#This Row],[Nuclide]],Doedata,4)*37000000000) ->  | J79: =IF(Table58[[#This Row],[Activity (Bq)]]="","",Table58[[#This Row],[Activity (Bq)]]/37000000000) -> 
D80: =IF(Table58[[#This Row],[Mass (g)]]="","",Table58[[#This Row],[Mass (g)]]*VLOOKUP(Table58[[#This Row],[Nuclide]],Doedata,4)*37000000000) ->  | J80: =IF(Table58[[#This Row],[Activity (Bq)]]="","",Table58[[#This Row],[Activity (Bq)]]/37000000000) -> 
D81: =IF(Table58[[#This Row],[Mass (g)]]="","",Table58[[#This Row],[Mass (g)]]*VLOOKUP(Table58[[#This Row],[Nuclide]],Doedata,4)*37000000000) ->  | J81: =IF(Table58[[#This Row],[Activity (Bq)]]="","",Table58[[#This Row],[Activity (Bq)]]/37000000000) -> 
D82: =IF(Table58[[#This Row],[Mass (g)]]="","",Table58[[#This Row],[Mass (g)]]*VLOOKUP(Table58[[#This Row],[Nuclide]],Doedata,4)*37000000000) ->  | J82: =IF(Table58[[#This Row],[Activity (Bq)]]="","",Table58[[#This Row],[Activity (Bq)]]/37000000000) -> 
D83: =IF(Table58[[#This Row],[Mass (g)]]="","",Table58[[#This Row],[Mass (g)]]*VLOOKUP(Table58[[#This Row],[Nuclide]],Doedata,4)*37000000000) ->  | J83: =IF(Table58[[#This Row],[Activity (Bq)]]="","",Table58[[#This Row],[Activity (Bq)]]/37000000000) -> 
D84: =IF(Table58[[#This Row],[Mass (g)]]="","",Table58[[#This Row],[Mass (g)]]*VLOOKUP(Table58[[#This Row],[Nuclide]],Doedata,4)*37000000000) ->  | J84: =IF(Table58[[#This Row],[Activity (Bq)]]="","",Table58[[#This Row],[Activity (Bq)]]/37000000000) -> 
D85: =IF(Table58[[#This Row],[Mass (g)]]="","",Table58[[#This Row],[Mass (g)]]*VLOOKUP(Table58[[#This Row],[Nuclide]],Doedata,4)*37000000000) ->  | J85: =IF(Table58[[#This Row],[Activity (Bq)]]="","",Table58[[#This Row],[Activity (Bq)]]/37000000000) -> 
D86: =IF(Table58[[#This Row],[Mass (g)]]="","",Table58[[#This Row],[Mass (g)]]*VLOOKUP(Table58[[#This Row],[Nuclide]],Doedata,4)*37000000000) ->  | J86: =IF(Table58[[#This Row],[Activity (Bq)]]="","",Table58[[#This Row],[Activity (Bq)]]/37000000000) -> 
D87: =IF(Table58[[#This Row],[Mass (g)]]="","",Table58[[#This Row],[Mass (g)]]*VLOOKUP(Table58[[#This Row],[Nuclide]],Doedata,4)*37000000000) ->  | J87: =IF(Table58[[#This Row],[Activity (Bq)]]="","",Table58[[#This Row],[Activity (Bq)]]/37000000000) -> 
D88: =IF(Table58[[#This Row],[Mass (g)]]="","",Table58[[#This Row],[Mass (g)]]*VLOOKUP(Table58[[#This Row],[Nuclide]],Doedata,4)*37000000000) ->  | J88: =IF(Table58[[#This Row],[Activity (Bq)]]="","",Table58[[#This Row],[Activity (Bq)]]/37000000000) -> 
D89: =IF(Table58[[#This Row],[Mass (g)]]="","",Table58[[#This Row],[Mass (g)]]*VLOOKUP(Table58[[#This Row],[Nuclide]],Doedata,4)*37000000000) ->  | J89: =IF(Table58[[#This Row],[Activity (Bq)]]="","",Table58[[#This Row],[Activity (Bq)]]/37000000000) -> 
D90: =IF(Table58[[#This Row],[Mass (g)]]="","",Table58[[#This Row],[Mass (g)]]*VLOOKUP(Table58[[#This Row],[Nuclide]],Doedata,4)*37000000000) ->  | J90: =IF(Table58[[#This Row],[Activity (Bq)]]="","",Table58[[#This Row],[Activity (Bq)]]/37000000000) -> 
D91: =IF(Table58[[#This Row],[Mass (g)]]="","",Table58[[#This Row],[Mass (g)]]*VLOOKUP(Table58[[#This Row],[Nuclide]],Doedata,4)*37000000000) ->  | J91: =IF(Table58[[#This Row],[Activity (Bq)]]="","",Table58[[#This Row],[Activity (Bq)]]/37000000000) -> 
D92: =IF(Table58[[#This Row],[Mass (g)]]="","",Table58[[#This Row],[Mass (g)]]*VLOOKUP(Table58[[#This Row],[Nuclide]],Doedata,4)*37000000000) ->  | J92: =IF(Table58[[#This Row],[Activity (Bq)]]="","",Table58[[#This Row],[Activity (Bq)]]/37000000000) -> 
D93: =IF(Table58[[#This Row],[Mass (g)]]="","",Table58[[#This Row],[Mass (g)]]*VLOOKUP(Table58[[#This Row],[Nuclide]],Doedata,4)*37000000000) ->  | J93: =IF(Table58[[#This Row],[Activity (Bq)]]="","",Table58[[#This Row],[Activity (Bq)]]/37000000000) -> 
D94: =IF(Table58[[#This Row],[Mass (g)]]="","",Table58[[#This Row],[Mass (g)]]*VLOOKUP(Table58[[#This Row],[Nuclide]],Doedata,4)*37000000000) ->  | J94: =IF(Table58[[#This Row],[Activity (Bq)]]="","",Table58[[#This Row],[Activity (Bq)]]/37000000000) -> 
D95: =IF(Table58[[#This Row],[Mass (g)]]="","",Table58[[#This Row],[Mass (g)]]*VLOOKUP(Table58[[#This Row],[Nuclide]],Doedata,4)*37000000000) ->  | J95: =IF(Table58[[#This Row],[Activity (Bq)]]="","",Table58[[#This Row],[Activity (Bq)]]/37000000000) -> 
D96: =IF(Table58[[#This Row],[Mass (g)]]="","",Table58[[#This Row],[Mass (g)]]*VLOOKUP(Table58[[#This Row],[Nuclide]],Doedata,4)*37000000000) ->  | J96: =IF(Table58[[#This Row],[Activity (Bq)]]="","",Table58[[#This Row],[Activity (Bq)]]/37000000000) -> 
D97: =IF(Table58[[#This Row],[Mass (g)]]="","",Table58[[#This Row],[Mass (g)]]*VLOOKUP(Table58[[#This Row],[Nuclide]],Doedata,4)*37000000000) ->  | J97: =IF(Table58[[#This Row],[Activity (Bq)]]="","",Table58[[#This Row],[Activity (Bq)]]/37000000000) -> 
D98: =IF(Table58[[#This Row],[Mass (g)]]="","",Table58[[#This Row],[Mass (g)]]*VLOOKUP(Table58[[#This Row],[Nuclide]],Doedata,4)*37000000000) ->  | J98: =IF(Table58[[#This Row],[Activity (Bq)]]="","",Table58[[#This Row],[Activity (Bq)]]/37000000000) -> 
D99: =IF(Table58[[#This Row],[Mass (g)]]="","",Table58[[#This Row],[Mass (g)]]*VLOOKUP(Table58[[#This Row],[Nuclide]],Doedata,4)*37000000000) ->  | J99: =IF(Table58[[#This Row],[Activity (Bq)]]="","",Table58[[#This Row],[Activity (Bq)]]/37000000000) -> 
D100: =IF(Table58[[#This Row],[Mass (g)]]="","",Table58[[#This Row],[Mass (g)]]*VLOOKUP(Table58[[#This Row],[Nuclide]],Doedata,4)*37000000000) ->  | J100: =IF(Table58[[#This Row],[Activity (Bq)]]="","",Table58[[#This Row],[Activity (Bq)]]/37000000000) -> 
D101: =IF(Table58[[#This Row],[Mass (g)]]="","",Table58[[#This Row],[Mass (g)]]*VLOOKUP(Table58[[#This Row],[Nuclide]],Doedata,4)*37000000000) ->  | J101: =IF(Table58[[#This Row],[Activity (Bq)]]="","",Table58[[#This Row],[Activity (Bq)]]/37000000000) -> 
D102: =IF(Table58[[#This Row],[Mass (g)]]="","",Table58[[#This Row],[Mass (g)]]*VLOOKUP(Table58[[#This Row],[Nuclide]],Doedata,4)*37000000000) ->  | J102: =IF(Table58[[#This Row],[Activity (Bq)]]="","",Table58[[#This Row],[Activity (Bq)]]/37000000000) -> 
D103: =IF(Table58[[#This Row],[Mass (g)]]="","",Table58[[#This Row],[Mass (g)]]*VLOOKUP(Table58[[#This Row],[Nuclide]],Doedata,4)*37000000000) ->  | J103: =IF(Table58[[#This Row],[Activity (Bq)]]="","",Table58[[#This Row],[Activity (Bq)]]/37000000000) -> 
D104: =IF(Table58[[#This Row],[Mass (g)]]="","",Table58[[#This Row],[Mass (g)]]*VLOOKUP(Table58[[#This Row],[Nuclide]],Doedata,4)*37000000000) ->  | J104: =IF(Table58[[#This Row],[Activity (Bq)]]="","",Table58[[#This Row],[Activity (Bq)]]/37000000000) -> 
D105: =IF(Table58[[#This Row],[Mass (g)]]="","",Table58[[#This Row],[Mass (g)]]*VLOOKUP(Table58[[#This Row],[Nuclide]],Doedata,4)*37000000000) ->  | J105: =IF(Table58[[#This Row],[Activity (Bq)]]="","",Table58[[#This Row],[Activity (Bq)]]/37000000000) -> 
D106: =IF(Table58[[#This Row],[Mass (g)]]="","",Table58[[#This Row],[Mass (g)]]*VLOOKUP(Table58[[#This Row],[Nuclide]],Doedata,4)*37000000000) ->  | J106: =IF(Table58[[#This Row],[Activity (Bq)]]="","",Table58[[#This Row],[Activity (Bq)]]/37000000000) -> 
D107: =IF(Table58[[#This Row],[Mass (g)]]="","",Table58[[#This Row],[Mass (g)]]*VLOOKUP(Table58[[#This Row],[Nuclide]],Doedata,4)*37000000000) ->  | J107: =IF(Table58[[#This Row],[Activity (Bq)]]="","",Table58[[#This Row],[Activity (Bq)]]/37000000000) -> 
D108: =IF(Table58[[#This Row],[Mass (g)]]="","",Table58[[#This Row],[Mass (g)]]*VLOOKUP(Table58[[#This Row],[Nuclide]],Doedata,4)*37000000000) ->  | J108: =IF(Table58[[#This Row],[Activity (Bq)]]="","",Table58[[#This Row],[Activity (Bq)]]/37000000000) -> 
D109: =IF(Table58[[#This Row],[Mass (g)]]="","",Table58[[#This Row],[Mass (g)]]*VLOOKUP(Table58[[#This Row],[Nuclide]],Doedata,4)*37000000000) ->  | J109: =IF(Table58[[#This Row],[Activity (Bq)]]="","",Table58[[#This Row],[Activity (Bq)]]/37000000000) -> 
D110: =IF(Table58[[#This Row],[Mass (g)]]="","",Table58[[#This Row],[Mass (g)]]*VLOOKUP(Table58[[#This Row],[Nuclide]],Doedata,4)*37000000000) ->  | J110: =IF(Table58[[#This Row],[Activity (Bq)]]="","",Table58[[#This Row],[Activity (Bq)]]/37000000000) -> 
D111: =IF(Table58[[#This Row],[Mass (g)]]="","",Table58[[#This Row],[Mass (g)]]*VLOOKUP(Table58[[#This Row],[Nuclide]],Doedata,4)*37000000000) ->  | J111: =IF(Table58[[#This Row],[Activity (Bq)]]="","",Table58[[#This Row],[Activity (Bq)]]/37000000000) -> 
D112: =IF(Table58[[#This Row],[Mass (g)]]="","",Table58[[#This Row],[Mass (g)]]*VLOOKUP(Table58[[#This Row],[Nuclide]],Doedata,4)*37000000000) ->  | J112: =IF(Table58[[#This Row],[Activity (Bq)]]="","",Table58[[#This Row],[Activity (Bq)]]/37000000000) -> 
D113: =IF(Table58[[#This Row],[Mass (g)]]="","",Table58[[#This Row],[Mass (g)]]*VLOOKUP(Table58[[#This Row],[Nuclide]],Doedata,4)*37000000000) ->  | J113: =IF(Table58[[#This Row],[Activity (Bq)]]="","",Table58[[#This Row],[Activity (Bq)]]/37000000000) -> 
D114: =IF(Table58[[#This Row],[Mass (g)]]="","",Table58[[#This Row],[Mass (g)]]*VLOOKUP(Table58[[#This Row],[Nuclide]],Doedata,4)*37000000000) ->  | J114: =IF(Table58[[#This Row],[Activity (Bq)]]="","",Table58[[#This Row],[Activity (Bq)]]/37000000000) -> 
D115: =IF(Table58[[#This Row],[Mass (g)]]="","",Table58[[#This Row],[Mass (g)]]*VLOOKUP(Table58[[#This Row],[Nuclide]],Doedata,4)*37000000000) ->  | J115: =IF(Table58[[#This Row],[Activity (Bq)]]="","",Table58[[#This Row],[Activity (Bq)]]/37000000000) -> 
D116: =IF(Table58[[#This Row],[Mass (g)]]="","",Table58[[#This Row],[Mass (g)]]*VLOOKUP(Table58[[#This Row],[Nuclide]],Doedata,4)*37000000000) ->  | J116: =IF(Table58[[#This Row],[Activity (Bq)]]="","",Table58[[#This Row],[Activity (Bq)]]/37000000000) -> 
D117: =IF(Table58[[#This Row],[Mass (g)]]="","",Table58[[#This Row],[Mass (g)]]*VLOOKUP(Table58[[#This Row],[Nuclide]],Doedata,4)*37000000000) ->  | J117: =IF(Table58[[#This Row],[Activity (Bq)]]="","",Table58[[#This Row],[Activity (Bq)]]/37000000000) -> 
D118: =IF(Table58[[#This Row],[Mass (g)]]="","",Table58[[#This Row],[Mass (g)]]*VLOOKUP(Table58[[#This Row],[Nuclide]],Doedata,4)*37000000000) ->  | J118: =IF(Table58[[#This Row],[Activity (Bq)]]="","",Table58[[#This Row],[Activity (Bq)]]/37000000000) -> 
D119: =IF(Table58[[#This Row],[Mass (g)]]="","",Table58[[#This Row],[Mass (g)]]*VLOOKUP(Table58[[#This Row],[Nuclide]],Doedata,4)*37000000000) ->  | J119: =IF(Table58[[#This Row],[Activity (Bq)]]="","",Table58[[#This Row],[Activity (Bq)]]/37000000000) -> 
D120: =IF(Table58[[#This Row],[Mass (g)]]="","",Table58[[#This Row],[Mass (g)]]*VLOOKUP(Table58[[#This Row],[Nuclide]],Doedata,4)*37000000000) ->  | J120: =IF(Table58[[#This Row],[Activity (Bq)]]="","",Table58[[#This Row],[Activity (Bq)]]/37000000000) -> 
D121: =IF(Table58[[#This Row],[Mass (g)]]="","",Table58[[#This Row],[Mass (g)]]*VLOOKUP(Table58[[#This Row],[Nuclide]],Doedata,4)*37000000000) ->  | J121: =IF(Table58[[#This Row],[Activity (Bq)]]="","",Table58[[#This Row],[Activity (Bq)]]/37000000000) -> 
D122: =IF(Table58[[#This Row],[Mass (g)]]="","",Table58[[#This Row],[Mass (g)]]*VLOOKUP(Table58[[#This Row],[Nuclide]],Doedata,4)*37000000000) ->  | J122: =IF(Table58[[#This Row],[Activity (Bq)]]="","",Table58[[#This Row],[Activity (Bq)]]/37000000000) -> 
D123: =IF(Table58[[#This Row],[Mass (g)]]="","",Table58[[#This Row],[Mass (g)]]*VLOOKUP(Table58[[#This Row],[Nuclide]],Doedata,4)*37000000000) ->  | J123: =IF(Table58[[#This Row],[Activity (Bq)]]="","",Table58[[#This Row],[Activity (Bq)]]/37000000000) -> 
D124: =IF(Table58[[#This Row],[Mass (g)]]="","",Table58[[#This Row],[Mass (g)]]*VLOOKUP(Table58[[#This Row],[Nuclide]],Doedata,4)*37000000000) ->  | J124: =IF(Table58[[#This Row],[Activity (Bq)]]="","",Table58[[#This Row],[Activity (Bq)]]/37000000000) -> 
D125: =IF(Table58[[#This Row],[Mass (g)]]="","",Table58[[#This Row],[Mass (g)]]*VLOOKUP(Table58[[#This Row],[Nuclide]],Doedata,4)*37000000000) ->  | J125: =IF(Table58[[#This Row],[Activity (Bq)]]="","",Table58[[#This Row],[Activity (Bq)]]/37000000000) -> 
D126: =IF(Table58[[#This Row],[Mass (g)]]="","",Table58[[#This Row],[Mass (g)]]*VLOOKUP(Table58[[#This Row],[Nuclide]],Doedata,4)*37000000000) ->  | J126: =IF(Table58[[#This Row],[Activity (Bq)]]="","",Table58[[#This Row],[Activity (Bq)]]/37000000000) -> 
D127: =IF(Table58[[#This Row],[Mass (g)]]="","",Table58[[#This Row],[Mass (g)]]*VLOOKUP(Table58[[#This Row],[Nuclide]],Doedata,4)*37000000000) ->  | J127: =IF(Table58[[#This Row],[Activity (Bq)]]="","",Table58[[#This Row],[Activity (Bq)]]/37000000000) -> 
D128: =IF(Table58[[#This Row],[Mass (g)]]="","",Table58[[#This Row],[Mass (g)]]*VLOOKUP(Table58[[#This Row],[Nuclide]],Doedata,4)*37000000000) ->  | J128: =IF(Table58[[#This Row],[Activity (Bq)]]="","",Table58[[#This Row],[Activity (Bq)]]/37000000000) -> 
D129: =IF(Table58[[#This Row],[Mass (g)]]="","",Table58[[#This Row],[Mass (g)]]*VLOOKUP(Table58[[#This Row],[Nuclide]],Doedata,4)*37000000000) ->  | J129: =IF(Table58[[#This Row],[Activity (Bq)]]="","",Table58[[#This Row],[Activity (Bq)]]/37000000000) -> 
D130: =IF(Table58[[#This Row],[Mass (g)]]="","",Table58[[#This Row],[Mass (g)]]*VLOOKUP(Table58[[#This Row],[Nuclide]],Doedata,4)*37000000000) ->  | J130: =IF(Table58[[#This Row],[Activity (Bq)]]="","",Table58[[#This Row],[Activity (Bq)]]/37000000000) -> 
D131: =IF(Table58[[#This Row],[Mass (g)]]="","",Table58[[#This Row],[Mass (g)]]*VLOOKUP(Table58[[#This Row],[Nuclide]],Doedata,4)*37000000000) ->  | J131: =IF(Table58[[#This Row],[Activity (Bq)]]="","",Table58[[#This Row],[Activity (Bq)]]/37000000000) -> 
D132: =IF(Table58[[#This Row],[Mass (g)]]="","",Table58[[#This Row],[Mass (g)]]*VLOOKUP(Table58[[#This Row],[Nuclide]],Doedata,4)*37000000000) ->  | J132: =IF(Table58[[#This Row],[Activity (Bq)]]="","",Table58[[#This Row],[Activity (Bq)]]/37000000000) -> 
D133: =IF(Table58[[#This Row],[Mass (g)]]="","",Table58[[#This Row],[Mass (g)]]*VLOOKUP(Table58[[#This Row],[Nuclide]],Doedata,4)*37000000000) ->  | J133: =IF(Table58[[#This Row],[Activity (Bq)]]="","",Table58[[#This Row],[Activity (Bq)]]/37000000000) -> 
D134: =IF(Table58[[#This Row],[Mass (g)]]="","",Table58[[#This Row],[Mass (g)]]*VLOOKUP(Table58[[#This Row],[Nuclide]],Doedata,4)*37000000000) ->  | J134: =IF(Table58[[#This Row],[Activity (Bq)]]="","",Table58[[#This Row],[Activity (Bq)]]/37000000000) -> 
D135: =IF(Table58[[#This Row],[Mass (g)]]="","",Table58[[#This Row],[Mass (g)]]*VLOOKUP(Table58[[#This Row],[Nuclide]],Doedata,4)*37000000000) ->  | J135: =IF(Table58[[#This Row],[Activity (Bq)]]="","",Table58[[#This Row],[Activity (Bq)]]/37000000000) -> 
D136: =IF(Table58[[#This Row],[Mass (g)]]="","",Table58[[#This Row],[Mass (g)]]*VLOOKUP(Table58[[#This Row],[Nuclide]],Doedata,4)*37000000000) ->  | J136: =IF(Table58[[#This Row],[Activity (Bq)]]="","",Table58[[#This Row],[Activity (Bq)]]/37000000000) -> 
D137: =IF(Table58[[#This Row],[Mass (g)]]="","",Table58[[#This Row],[Mass (g)]]*VLOOKUP(Table58[[#This Row],[Nuclide]],Doedata,4)*37000000000) ->  | J137: =IF(Table58[[#This Row],[Activity (Bq)]]="","",Table58[[#This Row],[Activity (Bq)]]/37000000000) -> 
D138: =IF(Table58[[#This Row],[Mass (g)]]="","",Table58[[#This Row],[Mass (g)]]*VLOOKUP(Table58[[#This Row],[Nuclide]],Doedata,4)*37000000000) ->  | J138: =IF(Table58[[#This Row],[Activity (Bq)]]="","",Table58[[#This Row],[Activity (Bq)]]/37000000000) -> 
D139: =IF(Table58[[#This Row],[Mass (g)]]="","",Table58[[#This Row],[Mass (g)]]*VLOOKUP(Table58[[#This Row],[Nuclide]],Doedata,4)*37000000000) ->  | J139: =IF(Table58[[#This Row],[Activity (Bq)]]="","",Table58[[#This Row],[Activity (Bq)]]/37000000000) -> 
D140: =IF(Table58[[#This Row],[Mass (g)]]="","",Table58[[#This Row],[Mass (g)]]*VLOOKUP(Table58[[#This Row],[Nuclide]],Doedata,4)*37000000000) ->  | J140: =IF(Table58[[#This Row],[Activity (Bq)]]="","",Table58[[#This Row],[Activity (Bq)]]/37000000000) -> 
D141: =IF(Table58[[#This Row],[Mass (g)]]="","",Table58[[#This Row],[Mass (g)]]*VLOOKUP(Table58[[#This Row],[Nuclide]],Doedata,4)*37000000000) ->  | J141: =IF(Table58[[#This Row],[Activity (Bq)]]="","",Table58[[#This Row],[Activity (Bq)]]/37000000000) -> 
D142: =IF(Table58[[#This Row],[Mass (g)]]="","",Table58[[#This Row],[Mass (g)]]*VLOOKUP(Table58[[#This Row],[Nuclide]],Doedata,4)*37000000000) ->  | J142: =IF(Table58[[#This Row],[Activity (Bq)]]="","",Table58[[#This Row],[Activity (Bq)]]/37000000000) -> 
D143: =IF(Table58[[#This Row],[Mass (g)]]="","",Table58[[#This Row],[Mass (g)]]*VLOOKUP(Table58[[#This Row],[Nuclide]],Doedata,4)*37000000000) ->  | J143: =IF(Table58[[#This Row],[Activity (Bq)]]="","",Table58[[#This Row],[Activity (Bq)]]/37000000000) -> 
D144: =IF(Table58[[#This Row],[Mass (g)]]="","",Table58[[#This Row],[Mass (g)]]*VLOOKUP(Table58[[#This Row],[Nuclide]],Doedata,4)*37000000000) ->  | J144: =IF(Table58[[#This Row],[Activity (Bq)]]="","",Table58[[#This Row],[Activity (Bq)]]/37000000000) -> 
D145: =IF(Table58[[#This Row],[Mass (g)]]="","",Table58[[#This Row],[Mass (g)]]*VLOOKUP(Table58[[#This Row],[Nuclide]],Doedata,4)*37000000000) ->  | J145: =IF(Table58[[#This Row],[Activity (Bq)]]="","",Table58[[#This Row],[Activity (Bq)]]/37000000000) -> 
D146: =IF(Table58[[#This Row],[Mass (g)]]="","",Table58[[#This Row],[Mass (g)]]*VLOOKUP(Table58[[#This Row],[Nuclide]],Doedata,4)*37000000000) ->  | J146: =IF(Table58[[#This Row],[Activity (Bq)]]="","",Table58[[#This Row],[Activity (Bq)]]/37000000000) -> 
D147: =IF(Table58[[#This Row],[Mass (g)]]="","",Table58[[#This Row],[Mass (g)]]*VLOOKUP(Table58[[#This Row],[Nuclide]],Doedata,4)*37000000000) ->  | J147: =IF(Table58[[#This Row],[Activity (Bq)]]="","",Table58[[#This Row],[Activity (Bq)]]/37000000000) -> 
D148: =IF(Table58[[#This Row],[Mass (g)]]="","",Table58[[#This Row],[Mass (g)]]*VLOOKUP(Table58[[#This Row],[Nuclide]],Doedata,4)*37000000000) ->  | J148: =IF(Table58[[#This Row],[Activity (Bq)]]="","",Table58[[#This Row],[Activity (Bq)]]/37000000000) -> 
D149: =IF(Table58[[#This Row],[Mass (g)]]="","",Table58[[#This Row],[Mass (g)]]*VLOOKUP(Table58[[#This Row],[Nuclide]],Doedata,4)*37000000000) ->  | J149: =IF(Table58[[#This Row],[Activity (Bq)]]="","",Table58[[#This Row],[Activity (Bq)]]/37000000000) -> 
D150: =IF(Table58[[#This Row],[Mass (g)]]="","",Table58[[#This Row],[Mass (g)]]*VLOOKUP(Table58[[#This Row],[Nuclide]],Doedata,4)*37000000000) ->  | J150: =IF(Table58[[#This Row],[Activity (Bq)]]="","",Table58[[#This Row],[Activity (Bq)]]/37000000000) -> 
D151: =IF(Table58[[#This Row],[Mass (g)]]="","",Table58[[#This Row],[Mass (g)]]*VLOOKUP(Table58[[#This Row],[Nuclide]],Doedata,4)*37000000000) ->  | J151: =IF(Table58[[#This Row],[Activity (Bq)]]="","",Table58[[#This Row],[Activity (Bq)]]/37000000000) -> 
D152: =IF(Table58[[#This Row],[Mass (g)]]="","",Table58[[#This Row],[Mass (g)]]*VLOOKUP(Table58[[#This Row],[Nuclide]],Doedata,4)*37000000000) ->  | J152: =IF(Table58[[#This Row],[Activity (Bq)]]="","",Table58[[#This Row],[Activity (Bq)]]/37000000000) -> 
D153: =IF(Table58[[#This Row],[Mass (g)]]="","",Table58[[#This Row],[Mass (g)]]*VLOOKUP(Table58[[#This Row],[Nuclide]],Doedata,4)*37000000000) ->  | J153: =IF(Table58[[#This Row],[Activity (Bq)]]="","",Table58[[#This Row],[Activity (Bq)]]/37000000000) -> 
D154: =IF(Table58[[#This Row],[Mass (g)]]="","",Table58[[#This Row],[Mass (g)]]*VLOOKUP(Table58[[#This Row],[Nuclide]],Doedata,4)*37000000000) ->  | J154: =IF(Table58[[#This Row],[Activity (Bq)]]="","",Table58[[#This Row],[Activity (Bq)]]/37000000000) -> 
D155: =IF(Table58[[#This Row],[Mass (g)]]="","",Table58[[#This Row],[Mass (g)]]*VLOOKUP(Table58[[#This Row],[Nuclide]],Doedata,4)*37000000000) ->  | J155: =IF(Table58[[#This Row],[Activity (Bq)]]="","",Table58[[#This Row],[Activity (Bq)]]/37000000000) -> 
D156: =IF(Table58[[#This Row],[Mass (g)]]="","",Table58[[#This Row],[Mass (g)]]*VLOOKUP(Table58[[#This Row],[Nuclide]],Doedata,4)*37000000000) ->  | J156: =IF(Table58[[#This Row],[Activity (Bq)]]="","",Table58[[#This Row],[Activity (Bq)]]/37000000000) -> 
D157: =IF(Table58[[#This Row],[Mass (g)]]="","",Table58[[#This Row],[Mass (g)]]*VLOOKUP(Table58[[#This Row],[Nuclide]],Doedata,4)*37000000000) ->  | J157: =IF(Table58[[#This Row],[Activity (Bq)]]="","",Table58[[#This Row],[Activity (Bq)]]/37000000000) -> 
D158: =IF(Table58[[#This Row],[Mass (g)]]="","",Table58[[#This Row],[Mass (g)]]*VLOOKUP(Table58[[#This Row],[Nuclide]],Doedata,4)*37000000000) ->  | J158: =IF(Table58[[#This Row],[Activity (Bq)]]="","",Table58[[#This Row],[Activity (Bq)]]/37000000000) -> 
D159: =IF(Table58[[#This Row],[Mass (g)]]="","",Table58[[#This Row],[Mass (g)]]*VLOOKUP(Table58[[#This Row],[Nuclide]],Doedata,4)*37000000000) ->  | J159: =IF(Table58[[#This Row],[Activity (Bq)]]="","",Table58[[#This Row],[Activity (Bq)]]/37000000000) -> 
D160: =IF(Table58[[#This Row],[Mass (g)]]="","",Table58[[#This Row],[Mass (g)]]*VLOOKUP(Table58[[#This Row],[Nuclide]],Doedata,4)*37000000000) ->  | J160: =IF(Table58[[#This Row],[Activity (Bq)]]="","",Table58[[#This Row],[Activity (Bq)]]/37000000000) -> 
D161: =IF(Table58[[#This Row],[Mass (g)]]="","",Table58[[#This Row],[Mass (g)]]*VLOOKUP(Table58[[#This Row],[Nuclide]],Doedata,4)*37000000000) ->  | J161: =IF(Table58[[#This Row],[Activity (Bq)]]="","",Table58[[#This Row],[Activity (Bq)]]/37000000000) -> 
D162: =IF(Table58[[#This Row],[Mass (g)]]="","",Table58[[#This Row],[Mass (g)]]*VLOOKUP(Table58[[#This Row],[Nuclide]],Doedata,4)*37000000000) ->  | J162: =IF(Table58[[#This Row],[Activity (Bq)]]="","",Table58[[#This Row],[Activity (Bq)]]/37000000000) -> 
D163: =IF(Table58[[#This Row],[Mass (g)]]="","",Table58[[#This Row],[Mass (g)]]*VLOOKUP(Table58[[#This Row],[Nuclide]],Doedata,4)*37000000000) ->  | J163: =IF(Table58[[#This Row],[Activity (Bq)]]="","",Table58[[#This Row],[Activity (Bq)]]/37000000000) -> 
D164: =IF(Table58[[#This Row],[Mass (g)]]="","",Table58[[#This Row],[Mass (g)]]*VLOOKUP(Table58[[#This Row],[Nuclide]],Doedata,4)*37000000000) ->  | J164: =IF(Table58[[#This Row],[Activity (Bq)]]="","",Table58[[#This Row],[Activity (Bq)]]/37000000000) -> 
D165: =IF(Table58[[#This Row],[Mass (g)]]="","",Table58[[#This Row],[Mass (g)]]*VLOOKUP(Table58[[#This Row],[Nuclide]],Doedata,4)*37000000000) ->  | J165: =IF(Table58[[#This Row],[Activity (Bq)]]="","",Table58[[#This Row],[Activity (Bq)]]/37000000000) -> 
D166: =IF(Table58[[#This Row],[Mass (g)]]="","",Table58[[#This Row],[Mass (g)]]*VLOOKUP(Table58[[#This Row],[Nuclide]],Doedata,4)*37000000000) ->  | J166: =IF(Table58[[#This Row],[Activity (Bq)]]="","",Table58[[#This Row],[Activity (Bq)]]/37000000000) -> 
D167: =IF(Table58[[#This Row],[Mass (g)]]="","",Table58[[#This Row],[Mass (g)]]*VLOOKUP(Table58[[#This Row],[Nuclide]],Doedata,4)*37000000000) ->  | J167: =IF(Table58[[#This Row],[Activity (Bq)]]="","",Table58[[#This Row],[Activity (Bq)]]/37000000000) -> 
D168: =IF(Table58[[#This Row],[Mass (g)]]="","",Table58[[#This Row],[Mass (g)]]*VLOOKUP(Table58[[#This Row],[Nuclide]],Doedata,4)*37000000000) ->  | J168: =IF(Table58[[#This Row],[Activity (Bq)]]="","",Table58[[#This Row],[Activity (Bq)]]/37000000000) -> 
D169: =IF(Table58[[#This Row],[Mass (g)]]="","",Table58[[#This Row],[Mass (g)]]*VLOOKUP(Table58[[#This Row],[Nuclide]],Doedata,4)*37000000000) ->  | J169: =IF(Table58[[#This Row],[Activity (Bq)]]="","",Table58[[#This Row],[Activity (Bq)]]/37000000000) -> 
D170: =IF(Table58[[#This Row],[Mass (g)]]="","",Table58[[#This Row],[Mass (g)]]*VLOOKUP(Table58[[#This Row],[Nuclide]],Doedata,4)*37000000000) ->  | J170: =IF(Table58[[#This Row],[Activity (Bq)]]="","",Table58[[#This Row],[Activity (Bq)]]/37000000000) -> 
D171: =IF(Table58[[#This Row],[Mass (g)]]="","",Table58[[#This Row],[Mass (g)]]*VLOOKUP(Table58[[#This Row],[Nuclide]],Doedata,4)*37000000000) ->  | J171: =IF(Table58[[#This Row],[Activity (Bq)]]="","",Table58[[#This Row],[Activity (Bq)]]/37000000000) -> 
D172: =IF(Table58[[#This Row],[Mass (g)]]="","",Table58[[#This Row],[Mass (g)]]*VLOOKUP(Table58[[#This Row],[Nuclide]],Doedata,4)*37000000000) ->  | J172: =IF(Table58[[#This Row],[Activity (Bq)]]="","",Table58[[#This Row],[Activity (Bq)]]/37000000000) -> 
D173: =IF(Table58[[#This Row],[Mass (g)]]="","",Table58[[#This Row],[Mass (g)]]*VLOOKUP(Table58[[#This Row],[Nuclide]],Doedata,4)*37000000000) ->  | J173: =IF(Table58[[#This Row],[Activity (Bq)]]="","",Table58[[#This Row],[Activity (Bq)]]/37000000000) -> 
D174: =IF(Table58[[#This Row],[Mass (g)]]="","",Table58[[#This Row],[Mass (g)]]*VLOOKUP(Table58[[#This Row],[Nuclide]],Doedata,4)*37000000000) ->  | J174: =IF(Table58[[#This Row],[Activity (Bq)]]="","",Table58[[#This Row],[Activity (Bq)]]/37000000000) -> 
D175: =IF(Table58[[#This Row],[Mass (g)]]="","",Table58[[#This Row],[Mass (g)]]*VLOOKUP(Table58[[#This Row],[Nuclide]],Doedata,4)*37000000000) ->  | J175: =IF(Table58[[#This Row],[Activity (Bq)]]="","",Table58[[#This Row],[Activity (Bq)]]/37000000000) -> 
D176: =IF(Table58[[#This Row],[Mass (g)]]="","",Table58[[#This Row],[Mass (g)]]*VLOOKUP(Table58[[#This Row],[Nuclide]],Doedata,4)*37000000000) ->  | J176: =IF(Table58[[#This Row],[Activity (Bq)]]="","",Table58[[#This Row],[Activity (Bq)]]/37000000000) -> 
D177: =IF(Table58[[#This Row],[Mass (g)]]="","",Table58[[#This Row],[Mass (g)]]*VLOOKUP(Table58[[#This Row],[Nuclide]],Doedata,4)*37000000000) ->  | J177: =IF(Table58[[#This Row],[Activity (Bq)]]="","",Table58[[#This Row],[Activity (Bq)]]/37000000000) -> 
D178: =IF(Table58[[#This Row],[Mass (g)]]="","",Table58[[#This Row],[Mass (g)]]*VLOOKUP(Table58[[#This Row],[Nuclide]],Doedata,4)*37000000000) ->  | J178: =IF(Table58[[#This Row],[Activity (Bq)]]="","",Table58[[#This Row],[Activity (Bq)]]/37000000000) -> 
D179: =IF(Table58[[#This Row],[Mass (g)]]="","",Table58[[#This Row],[Mass (g)]]*VLOOKUP(Table58[[#This Row],[Nuclide]],Doedata,4)*37000000000) ->  | J179: =IF(Table58[[#This Row],[Activity (Bq)]]="","",Table58[[#This Row],[Activity (Bq)]]/37000000000) -> 
D180: =IF(Table58[[#This Row],[Mass (g)]]="","",Table58[[#This Row],[Mass (g)]]*VLOOKUP(Table58[[#This Row],[Nuclide]],Doedata,4)*37000000000) ->  | J180: =IF(Table58[[#This Row],[Activity (Bq)]]="","",Table58[[#This Row],[Activity (Bq)]]/37000000000) -> 
D181: =IF(Table58[[#This Row],[Mass (g)]]="","",Table58[[#This Row],[Mass (g)]]*VLOOKUP(Table58[[#This Row],[Nuclide]],Doedata,4)*37000000000) ->  | J181: =IF(Table58[[#This Row],[Activity (Bq)]]="","",Table58[[#This Row],[Activity (Bq)]]/37000000000) -> 
D182: =IF(Table58[[#This Row],[Mass (g)]]="","",Table58[[#This Row],[Mass (g)]]*VLOOKUP(Table58[[#This Row],[Nuclide]],Doedata,4)*37000000000) ->  | J182: =IF(Table58[[#This Row],[Activity (Bq)]]="","",Table58[[#This Row],[Activity (Bq)]]/37000000000) -> 
D183: =IF(Table58[[#This Row],[Mass (g)]]="","",Table58[[#This Row],[Mass (g)]]*VLOOKUP(Table58[[#This Row],[Nuclide]],Doedata,4)*37000000000) ->  | J183: =IF(Table58[[#This Row],[Activity (Bq)]]="","",Table58[[#This Row],[Activity (Bq)]]/37000000000) -> 
D184: =IF(Table58[[#This Row],[Mass (g)]]="","",Table58[[#This Row],[Mass (g)]]*VLOOKUP(Table58[[#This Row],[Nuclide]],Doedata,4)*37000000000) ->  | J184: =IF(Table58[[#This Row],[Activity (Bq)]]="","",Table58[[#This Row],[Activity (Bq)]]/37000000000) -> 
D185: =IF(Table58[[#This Row],[Mass (g)]]="","",Table58[[#This Row],[Mass (g)]]*VLOOKUP(Table58[[#This Row],[Nuclide]],Doedata,4)*37000000000) ->  | J185: =IF(Table58[[#This Row],[Activity (Bq)]]="","",Table58[[#This Row],[Activity (Bq)]]/37000000000) -> 
D186: =IF(Table58[[#This Row],[Mass (g)]]="","",Table58[[#This Row],[Mass (g)]]*VLOOKUP(Table58[[#This Row],[Nuclide]],Doedata,4)*37000000000) ->  | J186: =IF(Table58[[#This Row],[Activity (Bq)]]="","",Table58[[#This Row],[Activity (Bq)]]/37000000000) -> 
D187: =IF(Table58[[#This Row],[Mass (g)]]="","",Table58[[#This Row],[Mass (g)]]*VLOOKUP(Table58[[#This Row],[Nuclide]],Doedata,4)*37000000000) ->  | J187: =IF(Table58[[#This Row],[Activity (Bq)]]="","",Table58[[#This Row],[Activity (Bq)]]/37000000000) -> 
D188: =IF(Table58[[#This Row],[Mass (g)]]="","",Table58[[#This Row],[Mass (g)]]*VLOOKUP(Table58[[#This Row],[Nuclide]],Doedata,4)*37000000000) ->  | J188: =IF(Table58[[#This Row],[Activity (Bq)]]="","",Table58[[#This Row],[Activity (Bq)]]/37000000000) -> 
D189: =IF(Table58[[#This Row],[Mass (g)]]="","",Table58[[#This Row],[Mass (g)]]*VLOOKUP(Table58[[#This Row],[Nuclide]],Doedata,4)*37000000000) ->  | J189: =IF(Table58[[#This Row],[Activity (Bq)]]="","",Table58[[#This Row],[Activity (Bq)]]/37000000000) -> 
D190: =IF(Table58[[#This Row],[Mass (g)]]="","",Table58[[#This Row],[Mass (g)]]*VLOOKUP(Table58[[#This Row],[Nuclide]],Doedata,4)*37000000000) ->  | J190: =IF(Table58[[#This Row],[Activity (Bq)]]="","",Table58[[#This Row],[Activity (Bq)]]/37000000000) -> 
D191: =IF(Table58[[#This Row],[Mass (g)]]="","",Table58[[#This Row],[Mass (g)]]*VLOOKUP(Table58[[#This Row],[Nuclide]],Doedata,4)*37000000000) ->  | J191: =IF(Table58[[#This Row],[Activity (Bq)]]="","",Table58[[#This Row],[Activity (Bq)]]/37000000000) -> 
D192: =IF(Table58[[#This Row],[Mass (g)]]="","",Table58[[#This Row],[Mass (g)]]*VLOOKUP(Table58[[#This Row],[Nuclide]],Doedata,4)*37000000000) ->  | J192: =IF(Table58[[#This Row],[Activity (Bq)]]="","",Table58[[#This Row],[Activity (Bq)]]/37000000000) -> 
D193: =IF(Table58[[#This Row],[Mass (g)]]="","",Table58[[#This Row],[Mass (g)]]*VLOOKUP(Table58[[#This Row],[Nuclide]],Doedata,4)*37000000000) ->  | J193: =IF(Table58[[#This Row],[Activity (Bq)]]="","",Table58[[#This Row],[Activity (Bq)]]/37000000000) -> 
D194: =IF(Table58[[#This Row],[Mass (g)]]="","",Table58[[#This Row],[Mass (g)]]*VLOOKUP(Table58[[#This Row],[Nuclide]],Doedata,4)*37000000000) ->  | J194: =IF(Table58[[#This Row],[Activity (Bq)]]="","",Table58[[#This Row],[Activity (Bq)]]/37000000000) -> 
D195: =IF(Table58[[#This Row],[Mass (g)]]="","",Table58[[#This Row],[Mass (g)]]*VLOOKUP(Table58[[#This Row],[Nuclide]],Doedata,4)*37000000000) ->  | J195: =IF(Table58[[#This Row],[Activity (Bq)]]="","",Table58[[#This Row],[Activity (Bq)]]/37000000000) -> 
D196: =IF(Table58[[#This Row],[Mass (g)]]="","",Table58[[#This Row],[Mass (g)]]*VLOOKUP(Table58[[#This Row],[Nuclide]],Doedata,4)*37000000000) ->  | J196: =IF(Table58[[#This Row],[Activity (Bq)]]="","",Table58[[#This Row],[Activity (Bq)]]/37000000000) -> 
D197: =IF(Table58[[#This Row],[Mass (g)]]="","",Table58[[#This Row],[Mass (g)]]*VLOOKUP(Table58[[#This Row],[Nuclide]],Doedata,4)*37000000000) ->  | J197: =IF(Table58[[#This Row],[Activity (Bq)]]="","",Table58[[#This Row],[Activity (Bq)]]/37000000000) -> 
D198: =IF(Table58[[#This Row],[Mass (g)]]="","",Table58[[#This Row],[Mass (g)]]*VLOOKUP(Table58[[#This Row],[Nuclide]],Doedata,4)*37000000000) ->  | J198: =IF(Table58[[#This Row],[Activity (Bq)]]="","",Table58[[#This Row],[Activity (Bq)]]/37000000000) -> 

Sheet DOE-STD-1027-92 Data
A1: NuclideID | B1: Nuclide | C1: CAT3_Ci | D1: CAT3_g | E1: SpecificAct | F1: Pathway | G1: HalfLife | H1: HalfLifeUnits
A2: 1027 | B2: Ac-224 | C2: 3200 | D2: 0.000663 | E2: 4830000 | F2: f
A3: 1028 | B3: Ac-225 | C3: 32 | D3: 0.00055 | E3: 58000 | F3: i
A4: 1029 | B4: Ac-226 | C4: 320 | D4: 0.000669 | E4: 478000 | F4: i
A5: 1030 | B5: Ac-227 | C5: 0.042 | D5: 0.00058 | E5: 72.4 | F5: i
A6: 1031 | B6: Ac-228 | C6: 940 | D6: 0.000419 | E6: 2240000 | F6: i
A7: 1032 | B7: Ag-102 | C7: 17600 | D7: 0.000123 | E7: 143000000 | F7: i
A8: 1033 | B8: Ag-103 | C8: 30000 | D8: 0.00108 | E8: 27800000 | F8: d
A9: 1034 | B9: Ag-104 | C9: 58000 | D9: 0.00222 | E9: 26100000 | F9: d
A10: 1035 | B10: Ag-104m | C10: 22000 | D10: 0.000408 | E10: 54000000 | F10: d
A11: 1036 | B11: Ag-105 | C11: 1640 | D11: 0.0541 | E11: 30300 | F11: d
A12: 1037 | B12: Ag-106 | C12: 42000 | D12: 0.000567 | E12: 74000000 | F12: d
A13: 1038 | B13: Ag-106m | C13: 280 | D13: 0.00191 | E13: 147000 | F13: d
A14: 1039 | B14: Ag-108m | C14: 200 | D14: 7.67 | E14: 26.1 | F14: d
A15: 1040 | B15: Ag-110m | C15: 260 | D15: 0.055 | E15: 4750 | F15: i
A16: 1041 | B16: Ag-111 | C16: 1440 | D16: 0.00912 | E16: 158000 | F16: d
A17: 1042 | B17: Ag-112 | C17: 7600 | D17: 0.000847 | E17: 8970000 | F17: f
A18: 1043 | B18: Ag-115 | C18: 142000 | D18: 1.74e-05 | E18: 8180000000 | F18: d
A19: 1044 | B19: Al-26 | C19: 240 | D19: 12500 | E19: 0.0192 | F19: d
A20: 1045 | B20: Am-237 | C20: 42000 | D20: 0.00386 | E20: 10900000 | F20: d
A21: 1046 | B21: Am-238 | C21: 10600 | D21: 0.00131 | E21: 8060000 | F21: d
A22: 1047 | B22: Am-239 | C22: 16000 | D22: 0.0145 | E22: 1100000 | F22: d
A23: 1048 | B23: Am-240 | C23: 900 | D23: 0.0035 | E23: 257000 | F23: d
A24: 1049 | B24: Am-241 | C24: 0.52 | D24: 0.15 | E24: 3.43 | F24: i
A25: 1050 | B25: Am-242 | C25: 8200 | D25: 0.0101 | E25: 809000 | F25: i
A26: 1051 | B26: Am-242m | C26: 0.52 | D26: 0.053 | E26: 9.72 | F26: i
A27: 1052 | B27: Am-243 | C27: 0.52 | D27: 2.6 | E27: 0.199 | F27: i
A28: 1053 | B28: Am-244 | C28: 1880 | D28: 0.00148 | E28: 1270000 | F28: d
A29: 1054 | B29: Am-244m | C29: 420000 | D29: 0.0142 | E29: 29600000 | F29: i
A30: 1055 | B30: Am-245 | C30: 340000 | D30: 0.0545 | E30: 6240000 | F30: d
A31: 1056 | B31: Am-246 | C31: 30000 | D31: 0.00153 | E31: 19600000 | F31: d
A32: 1057 | B32: Am-246m | C32: 34000 | D32: 0.00111 | E32: 30600000 | F32: d
A33: 1058 | B33: Ar-39 | C33: 40000 | D33: 1170 | E33: 34.1 | F33: d
A34: 1059 | B34: Ar-41 | C34: 600 | D34: 1.43e-05 | E34: 41800000 | F34: d
A35: 1060 | B35: As-69 | C35: 1040000 | D35: 0.0058 | E35: 179000000 | F35: i
A36: 1061 | B36: As-70 | C36: 5800 | D36: 0.000114 | E36: 51100000 | F36: d
A37: 1062 | B37: As-71 | C37: 3800 | D37: 0.00558 | E37: 681000 | F37: d
A38: 1063 | B38: As-72 | C38: 1120 | D38: 0.000669 | E38: 1670000 | F38: d
A39: 1064 | B39: As-73 | C39: 5400 | D39: 0.242 | E39: 22300 | F39: f
A40: 1065 | B40: As-74 | C40: 1020 | D40: 0.0103 | E40: 99400 | F40: f
A41: 1066 | B41: As-76 | C41: 2600 | D41: 0.00166 | E41: 1570000 | F41: d
A42: 1067 | B42: As-77 | C42: 22000 | D42: 0.021 | E42: 1050000 | F42: f
A43: 1068 | B43: As-78 | C43: 7800 | D43: 0.000293 | E43: 26600000 | F43: d
A44: 1069 | B44: At-207 | C44: 7400 | D44: 0.00088 | E44: 8410000 | F44: d
A45: 1070 | B45: At-211 | C45: 5200 | D45: 0.00252 | E45: 2060000 | F45: i
A46: 1071 | B46: Au-193 | C46: 17200 | D46: 0.0187 | E46: 920000 | F46: d
A47: 1072 | B47: Au-194 | C47: 1160 | D47: 0.00284 | E47: 409000 | F47: d
A48: 1073 | B48: Au-195 | C48: 3200 | D48: 0.874 | E48: 3660 | F48: f
A49: 1074 | B49: Au-198 | C49: 2000 | D49: 0.0082 | E49: 245000 | F49: d
A50: 1075 | B50: Au-198m | C50: 1760 | D50: 0.00614 | E50: 287000 | F50: d
A51: 1076 | B51: Au-199 | C51: 9200 | D51: 0.044 | E51: 209000 | F51: f
A52: 1077 | B52: Au-200 | C52: 62000 | D52: 0.00319 | E52: 19400000 | F52: d
A53: 1078 | B53: Au-200m | C53: 560 | D53: 0.000668 | E53: 838000 | F53: d
A54: 1079 | B54: Au-201 | C54: 840000 | D54: 0.0237 | E54: 35400000 | F54: d
A55: 1080 | B55: Ba-126 | C55: 20000 | D55: 0.00129 | E55: 15500000 | F55: d
A56: 1081 | B56: Ba-128 | C56: 1900 | D56: 0.00453 | E56: 420000 | F56: f
A57: 1082 | B57: Ba-131 | C57: 1860 | D57: 0.022 | E57: 84500 | F57: d
A58: 1083 | B58: Ba-131m | C58: 820000 | D58: 0.00834 | E58: 98300000 | F58: d
A59: 1084 | B59: Ba-133 | C59: 1100 | D59: 4.3 | E59: 250 | F59: f
A60: 1085 | B60: Ba-133m | C60: 10800 | D60: 0.0178 | E60: 606000 | F60: f
A61: 1086 | B61: Ba-135m | C61: 22000 | D61: 0.0272 | E61: 809000 | F61: d
A62: 1087 | B62: Ba-139 | C62: 198000 | D62: 0.0121 | E62: 16400000 | F62: d
A63: 1088 | B63: Ba-140 | C63: 600 | D63: 0.0082 | E63: 73200 | F63: f
A64: 1089 | B64: Ba-141 | C64: 72000 | D64: 0.000986 | E64: 73000000 | F64: d
A65: 1090 | B65: Ba-142 | C65: 68000 | D65: 0.000544 | E65: 125000000 | F65: d
A66: 1091 | B66: Be-10 | C66: 104 | D66: 4650 | E66: 0.0224 | F66: i
A67: 1092 | B67: Be-7 | C67: 14800 | D67: 0.0423 | E67: 350000 | F67: d
A68: 1093 | B68: Bi-200 | C68: 9400 | D68: 0.000364 | E68: 25800000 | F68: d
A69: 1094 | B69: Bi-201 | C69: 9400 | D69: 0.00109 | E69: 8660000 | F69: d
A70: 1095 | B70: Bi-202 | C70: 20000 | D70: 0.00215 | E70: 9290000 | F70: d
A71: 1096 | B71: Bi-203 | C71: 840 | D71: 0.00064 | E71: 1310000 | F71: d
A72: 1097 | B72: Bi-205 | C72: 880 | D72: 0.0211 | E72: 41600 | F72: d
A73: 1098 | B73: Bi-206 | C73: 240 | D73: 0.00236 | E73: 102000 | F73: d
A74: 1099 | B74: Bi-207 | C74: 500 | D74: 11 | E74: 45.5 | F74: d
A75: 1100 | B75: Bi-210 | C75: 320 | D75: 0.0026 | E75: 124000 | F75: i
A76: 1101 | B76: Bi-210m | C76: 7.2 | D76: 12700 | E76: 0.000568 | F76: i
A77: 1102 | B77: Bi-212 | C77: 2000 | D77: 0.000137 | E77: 14600000 | F77: i
A78: 1103 | B78: Bi-213 | C78: 3200 | D78: 0.000165 | E78: 19300000 | F78: i
A79: 1104 | B79: Bi-214 | C79: 8200 | D79: 0.000186 | E79: 44200000 | F79: i
A80: 1105 | B80: Bk-245 | C80: 9200 | D80: 0.0853 | E80: 108000 | F80: d
A81: 1106 | B81: Bk-246 | C81: 1200 | D81: 0.00414 | E81: 290000 | F81: d
A82: 1107 | B82: Bk-247 | C82: 0.52 | D82: 0.496 | E82: 1.05 | F82: i
A83: 1108 | B83: Bk-249 | C83: 20 | D83: 0.0122 | E83: 1640 | F83: i
A84: 1109 | B84: Bk-250 | C84: 4200 | D84: 0.00108 | E84: 3890000 | F84: d,i
A85: 1110 | B85: Br-74 | C85: 19200 | D85: 0.000191 | E85: 100000000 | F85: d
A86: 1111 | B86: Br-74m | C86: 6400 | D86: 0.000105 | E86: 61200000 | F86: d
A87: 1112 | B87: Br-75 | C87: 6600 | D87: 0.000258 | E87: 25600000 | F87: d
A88: 1113 | B88: Br-76 | C88: 560 | D88: 0.00022 | E88: 2550000 | F88: d
A89: 1114 | B89: Br-77 | C89: 3000 | D89: 0.00413 | E89: 727000 | F89: d
A90: 1115 | B90: Br-80 | C90: 800000 | D90: 0.00592 | E90: 135000000 | F90: d
A91: 1116 | B91: Br-80m | C91: 104000 | D91: 0.0117 | E91: 8870000 | F91: i
A92: 1117 | B92: Br-82 | C92: 340 | D92: 0.000314 | E92: 1080000 | F92: d
A93: 1118 | B93: Br-83 | C93: 620000 | D93: 0.0392 | E93: 15800000 | F93: i
A94: 1119 | B94: Br-84 | C94: 13800 | D94: 0.000196 | E94: 70400000 | F94: d
A95: 1120 | B95: C-11 | C95: 36000 | D95: 4.29e-05 | E95: 839000000 | F95: d
A96: 1121 | B96: C1-36 | C96: 340 | D96: 10000 | E96: 0.033 | F96: f
A97: 1122 | B97: C1-38 | C97: 13800 | D97: 0.000104 | E97: 133000000 | F97: d
A98: 1123 | B98: C1-39 | C98: 9000 | D98: 0.000106 | E98: 85200000 | F98: d
A99: 1124 | B99: C-14 | C99: 420 | D99: 94 | E99: 4.46 | F99: i
A100: 1125 | B100: Ca-41 | C100: 1600 | D100: 25700 | E100: 0.0623 | F100: f
A101: 1126 | B101: Ca-45 | C101: 1100 | D101: 0.062 | E101: 17800 | F101: f
A102: 1127 | B102: Ca-47 | C102: 700 | D102: 0.0011 | E102: 613000 | F102: d
A103: 1128 | B103: Cd-104 | C103: 54000 | D103: 0.00172 | E103: 31400000 | F103: d
A104: 1129 | B104: Cd-107 | C104: 320000 | D104: 0.0709 | E104: 4510000 | F104: d
A105: 1130 | B105: Cd-109 | C105: 180 | D105: 0.07 | E105: 2580 | F105: f
A106: 1131 | B106: Cd-113 | C106: 11 | D106: 32000000000000 | E106: 3.4e-13 | F106: f
A107: 1132 | B107: Cd-113m | C107: 11.8 | D107: 0.0507 | E107: 233 | F107: f
A108: 1133 | B108: Cd-115 | C108: 2200 | D108: 0.00431 | E108: 510000 | F108: d
A109: 1134 | B109: Cd-115m | C109: 220 | D109: 0.00864 | E109: 25500 | F109: f
A110: 1135 | B110: Cd-117 | C110: 5600 | D110: 0.00052 | E110: 10800000 | F110: d
A111: 1136 | B111: Cd-117m | C111: 1400 | D111: 0.000176 | E111: 7970000 | F111: d
A112: 1137 | B112: Ce-134 | C112: 1540 | D112: 0.00474 | E112: 325000 | F112: f
A113: 1138 | B113: Ce-135 | C113: 1580 | D113: 0.0012 | E113: 1320000 | F113: d
A114: 1139 | B114: Ce-137 | C114: 138000 | D114: 0.0543 | E114: 2540000 | F114: d
A115: 1140 | B115: Ce-137m | C115: 12200 | D115: 0.0183 | E115: 665000 | F115: f
A116: 1141 | B116: Ce-139 | C116: 3200 | D116: 0.469 | E116: 6820 | F116: f
A117: 1142 | B117: Ce-141 | C117: 1000 | D117: 0.035 | E117: 28500 | F117: i
A118: 1143 | B118: Ce-143 | C118: 3800 | D118: 0.00572 | E118: 664000 | F118: d
A119: 1144 | B119: Ce-144 | C119: 100 | D119: 0.031 | E119: 3190 | F119: i
A120: 1145 | B120: Cf-244 | C120: 62000 | D120: 0.00156 | E120: 39700000 | F120: i
A121: 1146 | B121: Cf-246 | C121: 940 | D121: 0.00263 | E121: 357000 | F121: i
A122: 1147 | B122: Cf-248 | C122: 9.4 | D122: 0.00595 | E122: 1580 | F122: i
A123: 1148 | B123: Cf-249 | C123: 0.52 | D123: 0.127 | E123: 4.1 | F123: i
A124: 1149 | B124: Cf-250 | C124: 1.04 | D124: 0.00951 | E124: 109 | F124: i
A125: 1150 | B125: Cf-251 | C125: 0.52 | D125: 0.328 | E125: 1.59 | F125: i
A126: 1151 | B126: Cf-252 | C126: 3.2 | D126: 0.00595 | E126: 538 | F126: i
A127: 1152 | B127: Cf-253 | C127: 200 | D127: 0.0069 | E127: 29000 | F127: i
A128: 1153 | B128: Cf-254 | C128: 2 | D128: 0.000235 | E128: 8500 | F128: i
A129: 1154 | B129: Cm-238 | C129: 104000 | D129: 0.0189 | E129: 5490000 | F129: i
A130: 1155 | B130: Cm-240 | C130: 52 | D130: 0.00258 | E130: 20200 | F130: i
A131: 1156 | B131: Cm-241 | C131: 1900 | D131: 0.115 | E131: 16500 | F131: d
A132: 1157 | B132: Cm-242 | C132: 32 | D132: 0.0097 | E132: 3310 | F132: i
A133: 1158 | B133: Cm-243 | C133: 0.82 | D133: 0.0159 | E133: 51.6 | F133: i
A134: 1159 | B134: Cm-244 | C134: 1.04 | D134: 0.0128 | E134: 80.9 | F134: i
A135: 1160 | B135: Cm-245 | C135: 0.52 | D135: 3 | E135: 0.172 | F135: i
A136: 1161 | B136: Cm-246 | C136: 0.52 | D136: 1.69 | E136: 0.307 | F136: i
A137: 1162 | B137: Cm-247 | C137: 0.62 | D137: 6680 | E137: 9.28e-05 | F137: i
A138: 1163 | B138: Cm-248 | C138: 0.104 | D138: 24.4 | E138: 0.00425 | F138: i
A139: 1164 | B139: Cm-249 | C139: 620000 | D139: 0.0527 | E139: 11800000 | F139: d
A140: 1165 | B140: Co-55 | C140: 980 | D140: 0.000302 | E140: 3250000 | F140: d
A141: 1166 | B141: Co-56 | C141: 220 | D141: 0.00743 | E141: 29600 | F141: d
A142: 1167 | B142: Co-57 | C142: 6000 | D142: 0.709 | E142: 8460 | F142: d
A143: 1168 | B143: Co-58 | C143: 900 | D143: 0.0283 | E143: 31800 | F143: d
A144: 1169 | B144: Co-58m | C144: 6200000 | D144: 1.05 | E144: 5910000 | F144: i
A145: 1170 | B145: Co-60 | C145: 280 | D145: 0.25 | E145: 1130 | F145: d
A146: 1171 | B146: Co-60m | C146: 58000000 | D146: 0.194 | E146: 299000000 | F146: d
A147: 1172 | B147: Co-61 | C147: 80000 | D147: 0.00257 | E147: 31100000 | F147: d
A148: 1173 | B148: Co-62m | C148: 20000 | D148: 9.17e-05 | E148: 218000000 | F148: d
A149: 1174 | B149: Cr-48 | C149: 2600 | D149: 0.000914 | E149: 2840000 | F149: d
A150: 1175 | B150: Cr-49 | C150: 196000 | D150: 0.00215 | E150: 91200000 | F150: d
A151: 1176 | B151: Cr-51 | C151: 22000 | D151: 0.24 | E151: 92400 | F151: d
A152: 1177 | B152: Cs-125 | C152: 62000 | D152: 0.00185 | E152: 33400000 | F152: d
A153: 1178 | B153: Cs-127 | C153: 6600 | D153: 0.00167 | E153: 3950000 | F153: d
A154: 1179 | B154: Cs-129 | C154: 3800 | D154: 0.00501 | E154: 758000 | F154: d
A155: 1180 | B155: Cs-130 | C155: 600000 | D155: 0.0124 | E155: 48400000 | F155: d
A156: 1181 | B156: Cs-131 | C156: 28000 | D156: 0.272 | E156: 103000 | F156: f
A157: 1182 | B157: Cs-132 | C157: 1140 | D157: 0.00746 | E157: 153000 | F157: d
A158: 1183 | B158: Cs-134 | C158: 42 | D158: 0.033 | E158: 1290 | F158: f
A159: 1184 | B159: Cs-134m | C159: 260000 | D159: 0.0322 | E159: 8070000 | F159: d
A160: 1185 | B160: Cs-135 | C160: 420 | D160: 365000 | E160: 0.00115 | F160: f
A161: 1186 | B161: Cs-135m | C161: 8600 | D161: 0.000327 | E161: 26300000 | F161: d
A162: 1187 | B162: Cs-136 | C162: 400 | D162: 0.00546 | E162: 73300 | F162: d
A163: 1188 | B163: Cs-137 | C163: 60 | D163: 0.69 | E163: 87 | F163: f
A164: 1189 | B164: Cs-138 | C164: 10000 | D164: 0.000236 | E164: 42300000 | F164: d
A165: 1190 | B165: Cu-60 | C165: 19800 | D165: 0.000147 | E165: 135000000 | F165: d
A166: 1191 | B166: Cu-61 | C166: 16400 | D166: 0.00109 | E166: 15100000 | F166: d
A167: 1192 | B167: Cu-64 | C167: 154000 | D167: 0.0399 | E167: 3860000 | F167: f
A168: 1193 | B168: Cu-67 | C168: 7200 | D168: 0.00952 | E168: 756000 | F168: d
A169: 1194 | B169: Dy-155 | C169: 4000 | D169: 0.00198 | E169: 2020000 | F169: d
A170: 1195 | B170: Dy-157 | C170: 5600 | D170: 0.00227 | E170: 2460000 | F170: d
A171: 1196 | B171: Dy-159 | C171: 2400 | D171: 0.422 | E171: 5690 | F171: d
A172: 1197 | B172: Dy-165 | C172: 320000 | D172: 0.0393 | E172: 8140000 | F172: d
A173: 1198 | B173: Dy-166 | C173: 1740 | D173: 0.00752 | E173: 231000 | F173: f
A174: 1199 | B174: Er-161 | C174: 6600 | D174: 0.0011 | E174: 6010000 | F174: d
A175: 1200 | B175: Er-165 | C175: 1140000 | D175: 0.622 | E175: 1830000 | F175: f
A176: 1201 | B176: Er-169 | C176: 4200 | D176: 0.0505 | E176: 83100 | F176: f
A177: 1202 | B177: Er-171 | C177: 5400 | D177: 0.00222 | E177: 2440000 | F177: d
A178: 1203 | B178: Er-172 | C178: 1700 | D178: 0.0046 | E178: 370000 | F178: d
A179: 1204 | B179: Es-250 | C179: 1640 | D179: 0.000275 | E179: 5970000 | F179: d
A180: 1205 | B180: Es-251 | C180: 104000 | D180: 0.275 | E180: 378000 | F180: i
A181: 1206 | B181: Es-253 | C181: 200 | D181: 0.00793 | E181: 25200 | F181: i
A182: 1207 | B182: Es-254 | C182: 10.4 | D182: 0.00558 | E182: 1860 | F182: i
A183: 1208 | B183: Es-254m | C183: 104 | D183: 0.000331 | E183: 314000 | F183: i
A184: 1209 | B184: Eu-145 | C184: 640 | D184: 0.00422 | E184: 152000 | F184: d
A185: 1210 | B185: Eu-146 | C185: 400 | D185: 0.00206 | E185: 194000 | F185: d
A186: 1211 | B186: Eu-147 | C186: 1760 | D186: 0.0476 | E186: 37000 | F186: d
A187: 1212 | B187: Eu-148 | C187: 380 | D187: 0.0235 | E187: 16200 | F187: d
A188: 1213 | B188: Eu-149 | C188: 6800 | D188: 0.722 | E188: 9410 | F188: f
A189: 1214 | B189: Eu-150 | C189: 40000 | D189: 0.0241 | E189: 1660000 | F189: d | G189: 12.6 | H189: hours
A190: 1215 | B190: Eu-150 | C190: 200 | D190: 2.87 | E190: 69.7 | F190: i | G190: 34.2 | H190: years
A191: 1216 | B191: Eu-152 | C191: 200 | D191: 1.2 | E191: 177 | F191: i
A192: 1217 | B192: Eu-152m | C192: 5600 | D192: 0.00253 | E192: 2210000 | F192: d
A193: 1218 | B193: Eu-154 | C193: 200 | D193: 0.76 | E193: 264 | F193: i
A194: 1219 | B194: Eu-155 | C194: 940 | D194: 2 | E194: 465 | F194: i
A195: 1220 | B195: Eu-156 | C195: 460 | D195: 0.00835 | E195: 55100 | F195: d
A196: 1221 | B196: Eu-157 | C196: 980 | D196: 0.000744 | E196: 1320000 | F196: d
A197: 1222 | B197: Eu-158 | C197: 20000 | D197: 0.000771 | E197: 25900000 | F197: d
A198: 1223 | B198: F-18 | C198: 720000 | D198: 0.00757 | E198: 95200000 | F198: i
A199: 1224 | B199: Fe-52 | C199: 10000 | D199: 0.00137 | E199: 7280000 | F199: d
A200: 1225 | B200: Fe-55 | C200: 5400 | D200: 2.2 | E200: 2410 | F200: f
... 559 more rows
